{"text_format":"1","workbook":"xlsx","n_sheets":17,"sheets":["Order form cover page","1 Basic panel","2 Corner panel","3 Pitched panel Upper A","4 Pitched panel Lower B","5 Pitched panel Left C","6 Pitched panel Right D","7 U-panel","8 Special panel","9 Support studs","10 Flashings","11 Flashings 2","12 Other flashings","13 Screws and other acc.","14 Flat sheets","Translation","Data"],"not_rendered":{"charts":1,"images":138,"macros":1,"external_links":0,"defined_names":34,"comments":0,"pivot_tables":0},"unopened":[],"bounds":{"document_bytes":16777216,"sheet_cells":100000,"rows_first":2000,"rows_last":500,"rows_between":2000,"halvings":0,"cell_chars":16384,"cell_head_chars":4096},"cells_cut":0,"cells_raw":0,"read":"whole","date_system":"1900"}

{"sheet":"Order form cover page","index":0,"n_rows":43,"n_cols":17,"rows_kept":43,"cut":false,"hidden":false,"merged":[[7,20,7,24],[7,11,7,14],[3,2,3,9],[3,10,3,14],[6,10,6,11],[6,2,6,4],[6,7,6,9],[6,12,6,14],[44,0,44,14],[21,7,21,8],[21,9,21,10],[23,9,23,10],[21,11,21,13],[22,11,22,13],[22,2,22,4],[22,6,22,9],[22,0,22,1],[21,0,21,1],[42,0,43,1],[42,2,42,14],[43,2,43,14],[25,0,25,6],[23,11,23,14],[24,5,24,8],[0,0,2,3],[0,4,0,6],[0,7,0,9],[0,10,0,12],[0,13,0,14],[1,4,2,6],[1,7,1,9],[1,10,2,12],[1,13,2,14],[2,7,2,9],[3,0,3,1],[6,0,6,1],[6,5,6,6],[5,5,5,9],[5,10,5,14],[5,0,5,4],[4,0,4,1],[4,2,4,14],[7,0,8,0],[8,11,8,14],[7,5,8,5],[8,6,8,9],[7,6,7,9],[7,1,7,4],[7,10,8,10],[8,1,8,4],[29,5,29,7],[20,4,20,7],[19,8,20,9],[19,11,19,14],[20,11,20,14],[9,10,11,10],[9,11,9,14],[10,11,10,14],[16,0,16,2],[16,3,16,9],[12,6,12,9],[13,6,13,9],[14,6,14,9],[9,1,9,4],[11,6,11,9],[10,1,10,4],[9,6,9,9],[17,0,17,2],[16,10,16,14],[14,11,14,14],[15,10,15,14],[14,1,14,4],[9,0,11,0],[17,3,17,14],[12,11,12,14],[13,11,13,14],[10,6,10,9],[9,5,11,5],[11,1,11,4],[12,1,12,4],[13,1,13,4],[15,0,15,2],[11,11,11,14],[37,1,37,4],[39,1,39,4],[37,8,37,11],[39,8,39,11],[18,0,18,2],[18,3,18,7],[18,8,18,9],[18,10,18,14],[19,4,19,7],[19,0,20,2],[35,1,35,4],[27,8,27,11],[29,8,29,11],[31,8,31,11],[33,8,33,11],[27,1,27,4],[29,1,29,4],[31,1,31,4],[33,1,33,4],[35,8,35,11],[24,11,24,14],[23,0,23,1],[23,5,23,8],[30,5,31,7]]}
[null,null,null,null,"LIBERTA",null,null,"Select product",null,null,"Ruukki SAP order no.",null,null,"Date"]
[null,null,null,null,"ORDER FORM",null,null,"Language"]
[null,null,null,null,null,null,null,"English"]
["Send to:",null," cladding.ee@ruukki.com",null,null,null,null,null,null,null,"Italic underlined = mandatory information"]
["BUYER"]
["SHIP-TO PARTY (DELIVERY ADDRESS)",null,null,null,null,"BUYER",null,null,null,null,"BILL-TO PARTY (INVOICING CUSTOMER)"]
["Customer no.",null,null,null,null,"Customer no.",null,null,null,null,"Customer no."]
["Name",null,null,null,null,"Name",null,null,null,null,"Name"]
[null,null,null,null,null,null,null,null,null,null,null,null,null,null,null,null,"v2.4"]
["Address",null,null,null,null,"Address",null,null,null,null,"Address"]
[]
[]
["Person",null,null,null,null,"Person",null,null,null,null,"Person"]
["Tel.",null,null,null,null,"Tel.",null,null,null,null,"Tel."]
["email",null,null,null,null,"email",null,null,null,null,"email"]
["ORDER INFORMATION",null,null,null,null,null,null,null,null,null,"Short project name (3-10 characters)"]
["PO no./ project"]
["Ruukki Sales ja CST person"]
["Wholesaler order nr",null,null,null,null,null,null,null,"Billing fee"]
["Extra order",null,null,"No",null,null,null,null,"Project-specific material ordered",null,"No"]
[]
["TERMS"]
["Delivery term",null,"DDP (Delivery Duty Paid)"]
["Extra charges",null,"No"]
[]
["ATTACHED PRIMO AND ACCESSORY SPECIFICATIONS"]
[]
[null,"1 Basic panel",null,null,null,null,null,null,"8 Special panel"]
[]
[null,"2 Corner panel",null,null,null,"▲▲▲",null,null,"9 Support studs"]
[null,null,null,null,null,"Select product to continue"]
[null,"3 Pitched panel Upper A",null,null,null,null,null,null,"10 Flashings"]
[]
[null,"4 Pitched panel Lower B",null,null,null,null,null,null,"11 Flashings 2"]
[]
[null,"5 Pitched panel Left C",null,null,null,null,null,null,"12 Other flashings"]
[]
[null,"6 Pitched panel Right D",null,null,null,null,null,null,"13 Screws and other acc."]
[]
[null,"7 U-panel",null,null,null,null,null,null,"14 Flat sheets"]
[]
[]
["NOTE"]

{"sheet":"1 Basic panel","index":1,"n_rows":52,"n_cols":16,"rows_kept":52,"cut":false,"hidden":true,"merged":[[49,8,49,10],[49,11,49,12],[17,11,17,12],[18,11,18,12],[19,11,19,12],[20,11,20,12],[21,11,21,12],[22,11,22,12],[23,11,23,12],[24,11,24,12],[25,11,25,12],[45,8,45,10],[46,8,46,10],[47,8,47,10],[31,8,31,10],[32,8,32,10],[26,11,26,12],[27,11,27,12],[28,11,28,12],[29,11,29,12],[30,11,30,12],[31,11,31,12],[37,8,37,10],[38,8,38,10],[48,8,48,10],[32,11,32,12],[42,11,42,12],[43,11,43,12],[40,8,40,10],[41,8,41,10],[42,8,42,10],[43,8,43,10],[33,11,33,12],[34,11,34,12],[35,11,35,12],[36,11,36,12],[39,8,39,10],[46,11,46,12],[47,11,47,12],[48,11,48,12],[37,11,37,12],[38,11,38,12],[39,11,39,12],[40,11,40,12],[41,11,41,12],[45,11,45,12],[44,8,44,10],[44,11,44,12],[15,8,15,10],[15,11,15,12],[16,8,16,10],[16,11,16,12],[20,8,20,10],[21,8,21,10],[27,8,27,10],[33,8,33,10],[34,8,34,10],[28,8,28,10],[29,8,29,10],[17,8,17,10],[30,8,30,10],[22,8,22,10],[23,8,23,10],[24,8,24,10],[25,8,25,10],[26,8,26,10],[18,8,18,10],[35,8,35,10],[36,8,36,10],[19,8,19,10],[13,0,13,1],[12,0,12,1],[13,7,13,9],[8,0,8,1],[8,4,8,6],[8,2,8,3],[9,7,9,9],[8,7,8,9],[10,7,10,9],[10,10,10,12],[11,0,11,12],[10,0,10,6],[8,10,9,12],[9,0,9,1],[9,2,9,3],[9,4,9,6],[12,3,12,6],[13,3,13,6],[12,7,12,9],[12,2,13,2],[12,10,13,12],[0,0,2,3],[0,4,0,6],[7,2,7,6],[7,0,7,1],[0,7,0,9],[0,11,0,12],[1,11,2,12],[1,4,2,9],[6,10,7,12],[4,11,4,12],[5,11,5,12],[6,7,6,9],[6,0,6,1],[4,3,4,6],[5,3,5,6],[4,8,4,9],[5,8,5,9],[7,7,7,9],[4,0,4,2],[5,0,5,2],[6,2,6,6]]}
[null,null,null,null,"LIBERTA",null,null,"Select product",null,null,null,"Date"]
[null,null,null,null,"Panel specification - Basic panel"]
[]
[]
["Ruukki SAP order no.",null,null,null,null,null,null,"Material","<Select option>"]
["PO no./ project"]
["Main order",null,null,null,null,null,null,"Fastening holes"]
[null,null,null,null,null,null,null,"Standard hole pattern"]
[null,null,null,null,null,null,null,"Perforation options"]
[null,null,null,null,null,null,null,"No perforation"]
[null,null,null,null,null,null,null,"Brick pattern",null,null,"No brick pattern"]
[]
["Price €/m²",null,"Sizes","Basic",null,null,null,null,null,null,"*For further info please refer to product size table"]
["__________"]
[]
["ITEM","A (mm)","B (mm)","C (mm)","Dh (mm)","Dv (mm)","Amount ","Part ID","NOTE",null,null,"Packing info"]
["Example",2500,500,null,null,null,15,"N20","drawing N20",null,null,"East wall",null,"m² / pc"]
[1,null,null,null,null,null,null,null,null,null,null,null,null,{"$f":"B18*C18/10^6","v":0},{"$f":"N18*G18","v":0}]
[2,null,null,null,null,null,null,null,null,null,null,null,null,{"$f":"B19*C19/10^6","v":0},{"$f":"N19*G19","v":0}]
[3,null,null,null,null,null,null,null,null,null,null,null,null,0,0]
[4,null,null,null,null,null,null,null,null,null,null,null,null,0,0]
[5,null,null,null,null,null,null,null,null,null,null,null,null,0,0]
[6,null,null,null,null,null,null,null,null,null,null,null,null,0,0]
[7,null,null,null,null,null,null,null,null,null,null,null,null,0,0]
[8,null,null,null,null,null,null,null,null,null,null,null,null,0,0]
[9,null,null,null,null,null,null,null,null,null,null,null,null,0,0]
[10,null,null,null,null,null,null,null,null,null,null,null,null,0,0]
[11,null,null,null,null,null,null,null,null,null,null,null,null,0,0]
[12,null,null,null,null,null,null,null,null,null,null,null,null,0,0]
[13,null,null,null,null,null,null,null,null,null,null,null,null,0,0]
[14,null,null,null,null,null,null,null,null,null,null,null,null,0,0]
[15,null,null,null,null,null,null,null,null,null,null,null,null,0,0]
[16,null,null,null,null,null,null,null,null,null,null,null,null,0,0]
[17,null,null,null,null,null,null,null,null,null,null,null,null,0,0]
[18,null,null,null,null,null,null,null,null,null,null,null,null,0,0]
[19,null,null,null,null,null,null,null,null,null,null,null,null,0,0]
[20,null,null,null,null,null,null,null,null,null,null,null,null,0,0]
[21,null,null,null,null,null,null,null,null,null,null,null,null,0,0]
[22,null,null,null,null,null,null,null,null,null,null,null,null,0,0]
[23,null,null,null,null,null,null,null,null,null,null,null,null,0,0]
[24,null,null,null,null,null,null,null,null,null,null,null,null,0,0]
[25,null,null,null,null,null,null,null,null,null,null,null,null,0,0]
[26,null,null,null,null,null,null,null,null,null,null,null,null,0,0]
[27,null,null,null,null,null,null,null,null,null,null,null,null,0,0]
[28,null,null,null,null,null,null,null,null,null,null,null,null,{"$f":"B45*C45/10^6","v":0},0]
[29,null,null,null,null,null,null,null,null,null,null,null,null,{"$f":"B46*C46/10^6","v":0},0]
[30,null,null,null,null,null,null,null,null,null,null,null,null,{"$f":"B47*C47/10^6","v":0},0]
[31,null,null,null,null,null,null,null,null,null,null,null,null,{"$f":"B48*C48/10^6","v":0},0]
[32,null,null,null,null,null,null,null,null,null,null,null,null,{"$f":"B49*C49/10^6","v":0},0]
[33,null,null,null,null,null,null,null,null,null,null,null,null,{"$f":"B50*C50/10^6","v":0},0]
[]
[null,null,null,null,null,null,null,null,null,null,null,null,null,null,{"$f":"SUM(O18:O50)","v":0},"m²"]

{"sheet":"2 Corner panel","index":2,"n_rows":52,"n_cols":16,"rows_kept":52,"cut":false,"hidden":true,"merged":[[49,11,49,12],[41,11,41,12],[42,11,42,12],[43,11,43,12],[45,11,45,12],[46,11,46,12],[44,11,44,12],[46,9,46,10],[47,9,47,10],[48,9,48,10],[49,9,49,10],[47,11,47,12],[48,11,48,12],[0,0,2,3],[0,4,0,6],[0,7,0,9],[0,11,0,12],[1,4,2,9],[1,11,2,12],[6,7,6,9],[6,10,7,12],[6,0,6,1],[7,2,7,6],[7,7,7,9],[7,0,7,1],[6,2,6,6],[4,8,4,9],[5,8,5,9],[4,0,4,2],[4,3,4,6],[5,0,5,2],[5,3,5,6],[4,11,4,12],[5,11,5,12],[9,0,9,1],[9,2,9,3],[10,0,10,6],[10,7,10,9],[10,10,10,12],[11,0,11,12],[43,9,43,10],[44,9,44,10],[45,9,45,10],[26,9,26,10],[27,9,27,10],[28,9,28,10],[24,11,24,12],[25,11,25,12],[26,11,26,12],[27,11,27,12],[13,0,13,1],[9,4,9,6],[9,7,9,9],[12,2,13,2],[12,3,12,6],[8,10,9,12],[41,9,41,10],[42,9,42,10],[12,10,13,12],[15,11,15,12],[15,9,15,10],[16,9,16,10],[17,9,17,10],[18,9,18,10],[19,9,19,10],[20,9,20,10],[21,9,21,10],[16,11,16,12],[17,11,17,12],[18,11,18,12],[12,7,12,9],[22,9,22,10],[23,9,23,10],[24,9,24,10],[34,11,34,12],[29,11,29,12],[40,11,40,12],[34,9,34,10],[35,9,35,10],[36,9,36,10],[37,9,37,10],[38,9,38,10],[40,9,40,10],[35,11,35,12],[36,11,36,12],[37,11,37,12],[38,11,38,12],[29,9,29,10],[8,0,8,1],[8,7,8,9],[13,3,13,6],[13,7,13,9],[8,2,8,3],[8,4,8,6],[39,9,39,10],[12,0,12,1],[39,11,39,12],[30,9,30,10],[31,9,31,10],[32,9,32,10],[33,9,33,10],[30,11,30,12],[31,11,31,12],[32,11,32,12],[33,11,33,12],[28,11,28,12],[19,11,19,12],[20,11,20,12],[21,11,21,12],[22,11,22,12],[23,11,23,12],[25,9,25,10]]}
[null,null,null,null,"LIBERTA",null,null,"Select product",null,null,null,"Date"]
[null,null,null,null,"Panel specification - Corner panel"]
[]
[]
["Ruukki SAP order no.",null,null,null,null,null,null,"Material","<Select option>"]
["PO no./ project"]
["Main order",null,null,null,null,null,null,"Fastening holes"]
[null,null,null,null,null,null,null,"Standard hole pattern"]
[null,null,null,null,null,null,null,"Perforation options"]
[null,null,null,null,null,null,null,"No perforation"]
[null,null,null,null,null,null,null,"Brick pattern",null,null,"No brick pattern"]
[]
["Price €/m²",null,"Sizes","Corner",null,null,null,null,null,null,"*For further info please refer to product size table"]
["__________"]
[null,"All dimensions in mm"]
["ITEM","A1 (mm)","A2 (mm)","B (mm)","C (mm)","Dh (mm)","Dv (mm)","Amount ","Part ID","NOTE",null,"Packing info"]
["Example",2500,500,null,"","","20","5","SW01","drawing SW00",null,"East wall",null,"m² / pc"]
[1,null,null,null,null,null,null,null,null,null,null,null,null,{"$f":"(B18+C18)*D18/10^6","v":0},{"$f":"N18*H18","v":0}]
[2,null,null,null,null,null,null,null,null,null,null,null,null,{"$f":"(B19+C19)*D19/10^6","v":0},{"$f":"N19*H19","v":0}]
[3,null,null,null,null,null,null,null,null,null,null,null,null,0,0]
[4,null,null,null,null,null,null,null,null,null,null,null,null,0,0]
[5,null,null,null,null,null,null,null,null,null,null,null,null,0,0]
[6,null,null,null,null,null,null,null,null,null,null,null,null,0,0]
[7,null,null,null,null,null,null,null,null,null,null,null,null,0,0]
[8,null,null,null,null,null,null,null,null,null,null,null,null,0,0]
[9,null,null,null,null,null,null,null,null,null,null,null,null,0,0]
[10,null,null,null,null,null,null,null,null,null,null,null,null,0,0]
[11,null,null,null,null,null,null,null,null,null,null,null,null,0,0]
[12,null,null,null,null,null,null,null,null,null,null,null,null,0,0]
[13,null,null,null,null,null,null,null,null,null,null,null,null,0,0]
[14,null,null,null,null,null,null,null,null,null,null,null,null,0,0]
[15,null,null,null,null,null,null,null,null,null,null,null,null,0,0]
[16,null,null,null,null,null,null,null,null,null,null,null,null,0,0]
[17,null,null,null,null,null,null,null,null,null,null,null,null,0,0]
[18,null,null,null,null,null,null,null,null,null,null,null,null,0,0]
[19,null,null,null,null,null,null,null,null,null,null,null,null,0,0]
[20,null,null,null,null,null,null,null,null,null,null,null,null,0,0]
[21,null,null,null,null,null,null,null,null,null,null,null,null,0,0]
[22,null,null,null,null,null,null,null,null,null,null,null,null,0,0]
[23,null,null,null,null,null,null,null,null,null,null,null,null,0,0]
[24,null,null,null,null,null,null,null,null,null,null,null,null,0,0]
[25,null,null,null,null,null,null,null,null,null,null,null,null,0,0]
[26,null,null,null,null,null,null,null,null,null,null,null,null,0,0]
[27,null,null,null,null,null,null,null,null,null,null,null,null,0,0]
[28,null,null,null,null,null,null,null,null,null,null,null,null,0,0]
[29,null,null,null,null,null,null,null,null,null,null,null,null,0,0]
[30,null,null,null,null,null,null,null,null,null,null,null,null,0,0]
[31,null,null,null,null,null,null,null,null,null,null,null,null,0,0]
[32,null,null,null,null,null,null,null,null,null,null,null,null,0,0]
[33,null,null,null,null,null,null,null,null,null,null,null,null,0,0]
[]
[null,null,null,null,null,null,null,null,null,null,null,null,null,null,{"$f":"SUM(O18:O50)","v":0},"m²"]

{"sheet":"3 Pitched panel Upper A","index":3,"n_rows":52,"n_cols":16,"rows_kept":52,"cut":false,"hidden":true,"merged":[[0,0,2,3],[0,4,0,6],[0,7,0,9],[0,11,0,12],[1,4,2,9],[1,11,2,12],[6,0,6,1],[6,2,6,6],[6,7,6,9],[6,10,7,12],[7,0,7,1],[7,2,7,6],[7,7,7,9],[4,0,4,2],[4,3,4,6],[4,8,4,9],[4,11,4,12],[5,0,5,2],[5,3,5,6],[5,8,5,9],[5,11,5,12],[8,0,8,1],[8,2,8,3],[8,4,8,6],[8,7,8,9],[8,10,9,12],[9,0,9,1],[9,2,9,3],[9,4,9,6],[9,7,9,9],[13,0,13,1],[13,3,13,6],[13,7,13,9],[15,9,15,10],[15,11,15,12],[16,9,16,10],[16,11,16,12],[12,0,12,1],[12,2,13,2],[12,3,12,6],[12,7,12,9],[12,10,13,12],[20,9,20,10],[20,11,20,12],[21,9,21,10],[21,11,21,12],[22,9,22,10],[22,11,22,12],[17,9,17,10],[17,11,17,12],[18,9,18,10],[18,11,18,12],[19,9,19,10],[19,11,19,12],[26,9,26,10],[26,11,26,12],[27,9,27,10],[27,11,27,12],[28,9,28,10],[28,11,28,12],[23,9,23,10],[23,11,23,12],[24,9,24,10],[24,11,24,12],[25,9,25,10],[25,11,25,12],[32,9,32,10],[32,11,32,12],[33,9,33,10],[33,11,33,12],[34,9,34,10],[34,11,34,12],[29,9,29,10],[29,11,29,12],[30,9,30,10],[30,11,30,12],[31,9,31,10],[31,11,31,12],[39,9,39,10],[39,11,39,12],[40,9,40,10],[40,11,40,12],[35,9,35,10],[35,11,35,12],[36,9,36,10],[36,11,36,12],[37,9,37,10],[37,11,37,12],[10,0,10,6],[10,7,10,9],[10,10,10,12],[11,0,11,12],[47,9,47,10],[47,11,47,12],[48,9,48,10],[48,11,48,12],[49,9,49,10],[49,11,49,12],[44,9,44,10],[44,11,44,12],[45,9,45,10],[45,11,45,12],[46,9,46,10],[46,11,46,12],[41,9,41,10],[41,11,41,12],[42,9,42,10],[42,11,42,12],[43,9,43,10],[43,11,43,12],[38,9,38,10],[38,11,38,12]]}
[null,null,null,null,"LIBERTA",null,null,"Select product",null,null,null,"Date"]
[null,null,null,null,"Panel specification - Pitched panel Upper A"]
[]
[]
["Ruukki SAP order no.",null,null,null,null,null,null,"Material","<Select option>"]
["PO no./ project"]
["Main order",null,null,null,null,null,null,"Fastening holes"]
[null,null,null,null,null,null,null,"Standard hole pattern"]
[null,null,null,null,null,null,null,"Perforation options"]
[null,null,null,null,null,null,null,"No perforation"]
[null,null,null,null,null,null,null,"Brick pattern",null,null,"No brick pattern"]
[]
["Price €/m²",null,"Sizes","Pitched A",null,null,null,null,null,null,"*For further info please refer to product size table"]
["__________"]
[]
["ITEM","A (mm)","B1 (mm)","B2 (mm)","C (mm)","Dh (mm)","Dv (mm)","Amount ","Part ID","NOTE",null,"Packing info"]
["Example",2500,500,null,"","","20","5","SW01","drawing SW00",null,"East wall",null,"m² / pc"]
[1,null,null,null,null,null,null,null,null,null,null,null,null,{"$f":"(D18+C18)/2*B18/10^6","v":0},{"$f":"N18*H18","v":0}]
[2,null,null,null,null,null,null,null,null,null,null,null,null,{"$f":"(D19+C19)/2*B19/10^6","v":0},{"$f":"N19*H19","v":0}]
[3,null,null,null,null,null,null,null,null,null,null,null,null,0,0]
[4,null,null,null,null,null,null,null,null,null,null,null,null,0,0]
[5,null,null,null,null,null,null,null,null,null,null,null,null,0,0]
[6,null,null,null,null,null,null,null,null,null,null,null,null,0,0]
[7,null,null,null,null,null,null,null,null,null,null,null,null,0,0]
[8,null,null,null,null,null,null,null,null,null,null,null,null,0,0]
[9,null,null,null,null,null,null,null,null,null,null,null,null,0,0]
[10,null,null,null,null,null,null,null,null,null,null,null,null,0,0]
[11,null,null,null,null,null,null,null,null,null,null,null,null,0,0]
[12,null,null,null,null,null,null,null,null,null,null,null,null,0,0]
[13,null,null,null,null,null,null,null,null,null,null,null,null,0,0]
[14,null,null,null,null,null,null,null,null,null,null,null,null,0,0]
[15,null,null,null,null,null,null,null,null,null,null,null,null,0,0]
[16,null,null,null,null,null,null,null,null,null,null,null,null,0,0]
[17,null,null,null,null,null,null,null,null,null,null,null,null,0,0]
[18,null,null,null,null,null,null,null,null,null,null,null,null,0,0]
[19,null,null,null,null,null,null,null,null,null,null,null,null,0,0]
[20,null,null,null,null,null,null,null,null,null,null,null,null,0,0]
[21,null,null,null,null,null,null,null,null,null,null,null,null,0,0]
[22,null,null,null,null,null,null,null,null,null,null,null,null,0,0]
[23,null,null,null,null,null,null,null,null,null,null,null,null,0,0]
[24,null,null,null,null,null,null,null,null,null,null,null,null,0,0]
[25,null,null,null,null,null,null,null,null,null,null,null,null,0,0]
[26,null,null,null,null,null,null,null,null,null,null,null,null,0,0]
[27,null,null,null,null,null,null,null,null,null,null,null,null,0,0]
[28,null,null,null,null,null,null,null,null,null,null,null,null,0,0]
[29,null,null,null,null,null,null,null,null,null,null,null,null,0,0]
[30,null,null,null,null,null,null,null,null,null,null,null,null,0,0]
[31,null,null,null,null,null,null,null,null,null,null,null,null,0,0]
[32,null,null,null,null,null,null,null,null,null,null,null,null,0,0]
[33,null,null,null,null,null,null,null,null,null,null,null,null,0,0]
[]
[null,null,null,null,null,null,null,null,null,null,null,null,null,null,{"$f":"SUM(O18:O50)","v":0},"m²"]

{"sheet":"4 Pitched panel Lower B","index":4,"n_rows":52,"n_cols":16,"rows_kept":52,"cut":false,"hidden":true,"merged":[[0,0,2,3],[0,4,0,6],[0,7,0,9],[0,11,0,12],[1,4,2,9],[1,11,2,12],[6,0,6,1],[6,2,6,6],[6,7,6,9],[6,10,7,12],[7,0,7,1],[7,2,7,6],[7,7,7,9],[4,0,4,2],[4,3,4,6],[4,8,4,9],[4,11,4,12],[5,0,5,2],[5,3,5,6],[5,8,5,9],[5,11,5,12],[8,0,8,1],[8,2,8,3],[8,4,8,6],[8,7,8,9],[8,10,9,12],[9,0,9,1],[9,2,9,3],[9,4,9,6],[9,7,9,9],[13,0,13,1],[13,3,13,6],[13,7,13,9],[15,9,15,10],[15,11,15,12],[16,9,16,10],[16,11,16,12],[12,0,12,1],[12,2,13,2],[12,3,12,6],[12,7,12,9],[12,10,13,12],[20,9,20,10],[20,11,20,12],[21,9,21,10],[21,11,21,12],[22,9,22,10],[22,11,22,12],[17,9,17,10],[17,11,17,12],[18,9,18,10],[18,11,18,12],[19,9,19,10],[19,11,19,12],[26,9,26,10],[26,11,26,12],[27,9,27,10],[27,11,27,12],[28,9,28,10],[28,11,28,12],[23,9,23,10],[23,11,23,12],[24,9,24,10],[24,11,24,12],[25,9,25,10],[25,11,25,12],[32,9,32,10],[32,11,32,12],[33,9,33,10],[33,11,33,12],[34,9,34,10],[34,11,34,12],[29,9,29,10],[29,11,29,12],[30,9,30,10],[30,11,30,12],[31,9,31,10],[31,11,31,12],[39,9,39,10],[39,11,39,12],[40,9,40,10],[40,11,40,12],[35,9,35,10],[35,11,35,12],[36,9,36,10],[36,11,36,12],[37,9,37,10],[37,11,37,12],[10,0,10,6],[10,7,10,9],[10,10,10,12],[11,0,11,12],[47,9,47,10],[47,11,47,12],[48,9,48,10],[48,11,48,12],[49,9,49,10],[49,11,49,12],[44,9,44,10],[44,11,44,12],[45,9,45,10],[45,11,45,12],[46,9,46,10],[46,11,46,12],[41,9,41,10],[41,11,41,12],[42,9,42,10],[42,11,42,12],[43,9,43,10],[43,11,43,12],[38,9,38,10],[38,11,38,12]]}
[null,null,null,null,"LIBERTA",null,null,"Select product",null,null,null,"Date"]
[null,null,null,null,"Panel specification - Pitched panel Lower B"]
[]
[]
["Ruukki SAP order no.",null,null,null,null,null,null,"Material","<Select option>"]
["PO no./ project"]
["Main order",null,null,null,null,null,null,"Fastening holes"]
[null,null,null,null,null,null,null,"Standard hole pattern"]
[null,null,null,null,null,null,null,"Perforation options"]
[null,null,null,null,null,null,null,"No perforation"]
[null,null,null,null,null,null,null,"Brick pattern",null,null,"No brick pattern"]
[]
["Price €/m²",null,"Sizes","Pitched B",null,null,null,null,null,null,"*For further info please refer to product size table"]
["__________"]
[]
["ITEM","A (mm)","B1 (mm)","B2 (mm)","C (mm)","Dh (mm)","Dv (mm)","Amount ","Part ID","NOTE",null,"Packing info"]
["Example",2500,500,null,"","","20","5","SW01","drawing SW00",null,"East wall",null,"m² / pc"]
[1,null,null,null,null,null,null,null,null,null,null,null,null,{"$f":"(D18+C18)/2*B18/10^6","v":0},{"$f":"N18*H18","v":0}]
[2,null,null,null,null,null,null,null,null,null,null,null,null,{"$f":"(D19+C19)/2*B19/10^6","v":0},{"$f":"N19*H19","v":0}]
[3,null,null,null,null,null,null,null,null,null,null,null,null,0,0]
[4,null,null,null,null,null,null,null,null,null,null,null,null,0,0]
[5,null,null,null,null,null,null,null,null,null,null,null,null,0,0]
[6,null,null,null,null,null,null,null,null,null,null,null,null,0,0]
[7,null,null,null,null,null,null,null,null,null,null,null,null,0,0]
[8,null,null,null,null,null,null,null,null,null,null,null,null,0,0]
[9,null,null,null,null,null,null,null,null,null,null,null,null,0,0]
[10,null,null,null,null,null,null,null,null,null,null,null,null,0,0]
[11,null,null,null,null,null,null,null,null,null,null,null,null,0,0]
[12,null,null,null,null,null,null,null,null,null,null,null,null,0,0]
[13,null,null,null,null,null,null,null,null,null,null,null,null,0,0]
[14,null,null,null,null,null,null,null,null,null,null,null,null,0,0]
[15,null,null,null,null,null,null,null,null,null,null,null,null,0,0]
[16,null,null,null,null,null,null,null,null,null,null,null,null,0,0]
[17,null,null,null,null,null,null,null,null,null,null,null,null,0,0]
[18,null,null,null,null,null,null,null,null,null,null,null,null,0,0]
[19,null,null,null,null,null,null,null,null,null,null,null,null,0,0]
[20,null,null,null,null,null,null,null,null,null,null,null,null,0,0]
[21,null,null,null,null,null,null,null,null,null,null,null,null,0,0]
[22,null,null,null,null,null,null,null,null,null,null,null,null,0,0]
[23,null,null,null,null,null,null,null,null,null,null,null,null,0,0]
[24,null,null,null,null,null,null,null,null,null,null,null,null,0,0]
[25,null,null,null,null,null,null,null,null,null,null,null,null,0,0]
[26,null,null,null,null,null,null,null,null,null,null,null,null,0,0]
[27,null,null,null,null,null,null,null,null,null,null,null,null,0,0]
[28,null,null,null,null,null,null,null,null,null,null,null,null,0,0]
[29,null,null,null,null,null,null,null,null,null,null,null,null,0,0]
[30,null,null,null,null,null,null,null,null,null,null,null,null,0,0]
[31,null,null,null,null,null,null,null,null,null,null,null,null,0,0]
[32,null,null,null,null,null,null,null,null,null,null,null,null,0,0]
[33,null,null,null,null,null,null,null,null,null,null,null,null,0,0]
[]
[null,null,null,null,null,null,null,null,null,null,null,null,null,null,{"$f":"SUM(O18:O50)","v":0},"m²"]

{"sheet":"5 Pitched panel Left C","index":5,"n_rows":52,"n_cols":16,"rows_kept":52,"cut":false,"hidden":true,"merged":[[0,0,2,3],[0,4,0,6],[0,7,0,9],[0,11,0,12],[1,4,2,9],[1,11,2,12],[6,0,6,1],[6,2,6,6],[6,7,6,9],[6,10,7,12],[7,0,7,1],[7,2,7,6],[7,7,7,9],[4,0,4,2],[4,3,4,6],[4,8,4,9],[4,11,4,12],[5,0,5,2],[5,3,5,6],[5,8,5,9],[5,11,5,12],[8,0,8,1],[8,2,8,3],[8,4,8,6],[8,7,8,9],[8,10,9,12],[9,0,9,1],[9,2,9,3],[9,4,9,6],[9,7,9,9],[13,0,13,1],[13,3,13,6],[13,7,13,9],[15,9,15,10],[15,11,15,12],[16,9,16,10],[16,11,16,12],[12,0,12,1],[12,2,13,2],[12,3,12,6],[12,7,12,9],[12,10,13,12],[20,9,20,10],[20,11,20,12],[21,9,21,10],[21,11,21,12],[22,9,22,10],[22,11,22,12],[17,9,17,10],[17,11,17,12],[18,9,18,10],[18,11,18,12],[19,9,19,10],[19,11,19,12],[26,9,26,10],[26,11,26,12],[27,9,27,10],[27,11,27,12],[28,9,28,10],[28,11,28,12],[23,9,23,10],[23,11,23,12],[24,9,24,10],[24,11,24,12],[25,9,25,10],[25,11,25,12],[32,9,32,10],[32,11,32,12],[33,9,33,10],[33,11,33,12],[34,9,34,10],[34,11,34,12],[29,9,29,10],[29,11,29,12],[30,9,30,10],[30,11,30,12],[31,9,31,10],[31,11,31,12],[39,9,39,10],[39,11,39,12],[40,9,40,10],[40,11,40,12],[35,9,35,10],[35,11,35,12],[36,9,36,10],[36,11,36,12],[37,9,37,10],[37,11,37,12],[10,0,10,6],[10,7,10,9],[10,10,10,12],[11,0,11,12],[47,9,47,10],[47,11,47,12],[48,9,48,10],[48,11,48,12],[49,9,49,10],[49,11,49,12],[44,9,44,10],[44,11,44,12],[45,9,45,10],[45,11,45,12],[46,9,46,10],[46,11,46,12],[41,9,41,10],[41,11,41,12],[42,9,42,10],[42,11,42,12],[43,9,43,10],[43,11,43,12],[38,9,38,10],[38,11,38,12]]}
[null,null,null,null,"LIBERTA",null,null,"Select product",null,null,null,"Date"]
[null,null,null,null,"Panel specification - Pitched panel Left C"]
[]
[]
["Ruukki SAP order no.",null,null,null,null,null,null,"Material","<Select option>"]
["PO no./ project"]
["Main order",null,null,null,null,null,null,"Fastening holes"]
[null,null,null,null,null,null,null,"Standard hole pattern"]
[null,null,null,null,null,null,null,"Perforation options"]
[null,null,null,null,null,null,null,"No perforation"]
[null,null,null,null,null,null,null,"Brick pattern",null,null,"No brick pattern"]
[]
["Price €/m²",null,"Sizes","Pitched C",null,null,null,null,null,null,"*For further info please refer to product size table"]
["__________"]
[]
["ITEM","A1 (mm)","A2 (mm)","B (mm)","C (mm)","Dh (mm)","Dv (mm)","Amount ","Part ID","NOTE",null,"Packing info"]
["Example",2500,500,null,"","","20","5","SW01","drawing SW00",null,"East wall",null,"m² / pc"]
[1,null,null,null,null,null,null,null,null,null,null,null,null,{"$f":"(B18+C18)/2*D18/10^6","v":0},{"$f":"N18*H18","v":0}]
[2,null,null,null,null,null,null,null,null,null,null,null,null,{"$f":"(B19+C19)/2*D19/10^6","v":0},{"$f":"N19*H19","v":0}]
[3,null,null,null,null,null,null,null,null,null,null,null,null,0,0]
[4,null,null,null,null,null,null,null,null,null,null,null,null,0,0]
[5,null,null,null,null,null,null,null,null,null,null,null,null,0,0]
[6,null,null,null,null,null,null,null,null,null,null,null,null,0,0]
[7,null,null,null,null,null,null,null,null,null,null,null,null,0,0]
[8,null,null,null,null,null,null,null,null,null,null,null,null,0,0]
[9,null,null,null,null,null,null,null,null,null,null,null,null,0,0]
[10,null,null,null,null,null,null,null,null,null,null,null,null,0,0]
[11,null,null,null,null,null,null,null,null,null,null,null,null,0,0]
[12,null,null,null,null,null,null,null,null,null,null,null,null,0,0]
[13,null,null,null,null,null,null,null,null,null,null,null,null,0,0]
[14,null,null,null,null,null,null,null,null,null,null,null,null,0,0]
[15,null,null,null,null,null,null,null,null,null,null,null,null,0,0]
[16,null,null,null,null,null,null,null,null,null,null,null,null,0,0]
[17,null,null,null,null,null,null,null,null,null,null,null,null,0,0]
[18,null,null,null,null,null,null,null,null,null,null,null,null,0,0]
[19,null,null,null,null,null,null,null,null,null,null,null,null,0,0]
[20,null,null,null,null,null,null,null,null,null,null,null,null,0,0]
[21,null,null,null,null,null,null,null,null,null,null,null,null,0,0]
[22,null,null,null,null,null,null,null,null,null,null,null,null,0,0]
[23,null,null,null,null,null,null,null,null,null,null,null,null,0,0]
[24,null,null,null,null,null,null,null,null,null,null,null,null,0,0]
[25,null,null,null,null,null,null,null,null,null,null,null,null,0,0]
[26,null,null,null,null,null,null,null,null,null,null,null,null,0,0]
[27,null,null,null,null,null,null,null,null,null,null,null,null,0,0]
[28,null,null,null,null,null,null,null,null,null,null,null,null,0,0]
[29,null,null,null,null,null,null,null,null,null,null,null,null,0,0]
[30,null,null,null,null,null,null,null,null,null,null,null,null,0,0]
[31,null,null,null,null,null,null,null,null,null,null,null,null,0,0]
[32,null,null,null,null,null,null,null,null,null,null,null,null,0,0]
[33,null,null,null,null,null,null,null,null,null,null,null,null,0,0]
[]
[null,null,null,null,null,null,null,null,null,null,null,null,null,null,{"$f":"SUM(O18:O50)","v":0},"m²"]

{"sheet":"6 Pitched panel Right D","index":6,"n_rows":52,"n_cols":16,"rows_kept":52,"cut":false,"hidden":true,"merged":[[0,0,2,3],[0,4,0,6],[0,7,0,9],[0,11,0,12],[1,4,2,9],[1,11,2,12],[6,0,6,1],[6,2,6,6],[6,7,6,9],[6,10,7,12],[7,0,7,1],[7,2,7,6],[7,7,7,9],[4,0,4,2],[4,3,4,6],[4,8,4,9],[4,11,4,12],[5,0,5,2],[5,3,5,6],[5,8,5,9],[5,11,5,12],[8,0,8,1],[8,2,8,3],[8,4,8,6],[8,7,8,9],[8,10,9,12],[9,0,9,1],[9,2,9,3],[9,4,9,6],[9,7,9,9],[13,0,13,1],[13,3,13,6],[13,7,13,9],[15,9,15,10],[15,11,15,12],[16,9,16,10],[16,11,16,12],[12,0,12,1],[12,2,13,2],[12,3,12,6],[12,7,12,9],[12,10,13,12],[20,9,20,10],[20,11,20,12],[21,9,21,10],[21,11,21,12],[22,9,22,10],[22,11,22,12],[17,9,17,10],[17,11,17,12],[18,9,18,10],[18,11,18,12],[19,9,19,10],[19,11,19,12],[26,9,26,10],[26,11,26,12],[27,9,27,10],[27,11,27,12],[28,9,28,10],[28,11,28,12],[23,9,23,10],[23,11,23,12],[24,9,24,10],[24,11,24,12],[25,9,25,10],[25,11,25,12],[32,9,32,10],[32,11,32,12],[33,9,33,10],[33,11,33,12],[34,9,34,10],[34,11,34,12],[29,9,29,10],[29,11,29,12],[30,9,30,10],[30,11,30,12],[31,9,31,10],[31,11,31,12],[39,9,39,10],[39,11,39,12],[40,9,40,10],[40,11,40,12],[35,9,35,10],[35,11,35,12],[36,9,36,10],[36,11,36,12],[37,9,37,10],[37,11,37,12],[10,0,10,6],[10,7,10,9],[10,10,10,12],[11,0,11,12],[47,9,47,10],[47,11,47,12],[48,9,48,10],[48,11,48,12],[49,9,49,10],[49,11,49,12],[44,9,44,10],[44,11,44,12],[45,9,45,10],[45,11,45,12],[46,9,46,10],[46,11,46,12],[41,9,41,10],[41,11,41,12],[42,9,42,10],[42,11,42,12],[43,9,43,10],[43,11,43,12],[38,9,38,10],[38,11,38,12]]}
[null,null,null,null,"LIBERTA",null,null,"Select product",null,null,null,"Date"]
[null,null,null,null,"Panel specification - Pitched panel Right D"]
[]
[]
["Ruukki SAP order no.",null,null,null,null,null,null,"Material","<Select option>"]
["PO no./ project"]
["Main order",null,null,null,null,null,null,"Fastening holes"]
[null,null,null,null,null,null,null,"Standard hole pattern"]
[null,null,null,null,null,null,null,"Perforation options"]
[null,null,null,null,null,null,null,"No perforation"]
[null,null,null,null,null,null,null,"Brick pattern",null,null,"No brick pattern"]
[]
["Price €/m²",null,"Sizes","Pitched D",null,null,null,null,null,null,"*For further info please refer to product size table"]
["__________"]
[]
["ITEM","A1 (mm)","A2 (mm)","B (mm)","C (mm)","Dh (mm)","Dv (mm)","Amount ","Part ID","NOTE",null,"Packing info"]
["Example",2500,500,null,"","","20","5","SW01","drawing SW00",null,"East wall",null,"m² / pc"]
[1,null,null,null,null,null,null,null,null,null,null,null,null,{"$f":"(B18+C18)/2*D18/10^6","v":0},{"$f":"N18*H18","v":0}]
[2,null,null,null,null,null,null,null,null,null,null,null,null,{"$f":"(B19+C19)/2*D19/10^6","v":0},{"$f":"N19*H19","v":0}]
[3,null,null,null,null,null,null,null,null,null,null,null,null,0,0]
[4,null,null,null,null,null,null,null,null,null,null,null,null,0,0]
[5,null,null,null,null,null,null,null,null,null,null,null,null,0,0]
[6,null,null,null,null,null,null,null,null,null,null,null,null,0,0]
[7,null,null,null,null,null,null,null,null,null,null,null,null,0,0]
[8,null,null,null,null,null,null,null,null,null,null,null,null,0,0]
[9,null,null,null,null,null,null,null,null,null,null,null,null,0,0]
[10,null,null,null,null,null,null,null,null,null,null,null,null,0,0]
[11,null,null,null,null,null,null,null,null,null,null,null,null,0,0]
[12,null,null,null,null,null,null,null,null,null,null,null,null,0,0]
[13,null,null,null,null,null,null,null,null,null,null,null,null,0,0]
[14,null,null,null,null,null,null,null,null,null,null,null,null,0,0]
[15,null,null,null,null,null,null,null,null,null,null,null,null,0,0]
[16,null,null,null,null,null,null,null,null,null,null,null,null,0,0]
[17,null,null,null,null,null,null,null,null,null,null,null,null,0,0]
[18,null,null,null,null,null,null,null,null,null,null,null,null,0,0]
[19,null,null,null,null,null,null,null,null,null,null,null,null,0,0]
[20,null,null,null,null,null,null,null,null,null,null,null,null,0,0]
[21,null,null,null,null,null,null,null,null,null,null,null,null,0,0]
[22,null,null,null,null,null,null,null,null,null,null,null,null,0,0]
[23,null,null,null,null,null,null,null,null,null,null,null,null,0,0]
[24,null,null,null,null,null,null,null,null,null,null,null,null,0,0]
[25,null,null,null,null,null,null,null,null,null,null,null,null,0,0]
[26,null,null,null,null,null,null,null,null,null,null,null,null,0,0]
[27,null,null,null,null,null,null,null,null,null,null,null,null,0,0]
[28,null,null,null,null,null,null,null,null,null,null,null,null,0,0]
[29,null,null,null,null,null,null,null,null,null,null,null,null,0,0]
[30,null,null,null,null,null,null,null,null,null,null,null,null,0,0]
[31,null,null,null,null,null,null,null,null,null,null,null,null,0,0]
[32,null,null,null,null,null,null,null,null,null,null,null,null,0,0]
[33,null,null,null,null,null,null,null,null,null,null,null,null,0,0]
[]
[null,null,null,null,null,null,null,null,null,null,null,null,null,null,{"$f":"SUM(O18:O50)","v":0},"m²"]

{"sheet":"7 U-panel","index":7,"n_rows":52,"n_cols":16,"rows_kept":52,"cut":false,"hidden":true,"merged":[[4,0,4,2],[4,3,4,6],[4,8,4,9],[4,11,4,12],[5,0,5,2],[5,3,5,6],[5,8,5,9],[5,11,5,12],[6,0,6,1],[6,2,6,6],[6,7,6,9],[6,10,7,12],[7,0,7,1],[7,2,7,6],[7,7,7,9],[0,0,2,3],[0,4,0,6],[0,7,0,9],[0,11,0,12],[1,4,2,9],[1,11,2,12],[8,0,8,1],[8,2,8,3],[8,4,8,6],[8,7,8,9],[8,10,9,12],[9,0,9,1],[9,2,9,3],[9,4,9,6],[9,7,9,9],[12,0,12,1],[12,2,13,2],[12,3,12,6],[12,7,12,9],[12,10,13,12],[17,11,17,12],[18,11,18,12],[19,11,19,12],[13,0,13,1],[13,3,13,6],[13,7,13,9],[15,11,15,12],[16,11,16,12],[23,11,23,12],[24,11,24,12],[25,11,25,12],[20,11,20,12],[21,11,21,12],[22,11,22,12],[34,11,34,12],[29,11,29,12],[30,11,30,12],[31,11,31,12],[26,11,26,12],[27,11,27,12],[28,11,28,12],[48,11,48,12],[49,11,49,12],[44,11,44,12],[45,11,45,12],[46,11,46,12],[10,0,10,6],[10,7,10,9],[10,10,10,12],[11,0,11,12],[47,11,47,12],[41,11,41,12],[42,11,42,12],[43,11,43,12],[38,11,38,12],[39,11,39,12],[40,11,40,12],[35,11,35,12],[36,11,36,12],[37,11,37,12],[32,11,32,12],[33,11,33,12]]}
[null,null,null,null,"LIBERTA",null,null,"Select product",null,null,null,"Date"]
[null,null,null,null,"Panel specification - U-panel"]
[]
[]
["Ruukki SAP order no.",null,null,null,null,null,null,"Material","<Select option>"]
["PO no./ project"]
["Main order",null,null,null,null,null,null,"Fastening holes"]
[null,null,null,null,null,null,null,"Standard hole pattern"]
[null,null,null,null,null,null,null,"Perforation options"]
[null,null,null,null,null,null,null,"No perforation"]
[null,null,null,null,null,null,null,"Brick pattern",null,null,"No brick pattern"]
[]
["Price €/m²",null,"Sizes","U-Panel",null,null,null,null,null,null,"*For further info please refer to product size table"]
["__________"]
[]
["ITEM","A1 (mm)","A2 (mm)","A3 (mm)","B (mm)","C (mm)","Dh (mm)","Dv (mm)","Amount ","Part ID","NOTE","Packing info"]
["Example",2500,500,null,"","","20","20","5","SW01","dwg SW00","East wall",null,"m² / pc"]
[1,null,null,null,null,null,null,null,null,null,null,null,null,{"$f":"(B18+C18+D18)*E18/10^6","v":0},{"$f":"N18*H18","v":0}]
[2,null,null,null,null,null,null,null,null,null,null,null,null,{"$f":"(B19+C19+D19)*E19/10^6","v":0},{"$f":"N19*H19","v":0}]
[3,null,null,null,null,null,null,null,null,null,null,null,null,0,0]
[4,null,null,null,null,null,null,null,null,null,null,null,null,0,0]
[5,null,null,null,null,null,null,null,null,null,null,null,null,0,0]
[6,null,null,null,null,null,null,null,null,null,null,null,null,0,0]
[7,null,null,null,null,null,null,null,null,null,null,null,null,0,0]
[8,null,null,null,null,null,null,null,null,null,null,null,null,0,0]
[9,null,null,null,null,null,null,null,null,null,null,null,null,0,0]
[10,null,null,null,null,null,null,null,null,null,null,null,null,0,0]
[11,null,null,null,null,null,null,null,null,null,null,null,null,0,0]
[12,null,null,null,null,null,null,null,null,null,null,null,null,0,0]
[13,null,null,null,null,null,null,null,null,null,null,null,null,0,0]
[14,null,null,null,null,null,null,null,null,null,null,null,null,0,0]
[15,null,null,null,null,null,null,null,null,null,null,null,null,0,0]
[16,null,null,null,null,null,null,null,null,null,null,null,null,0,0]
[17,null,null,null,null,null,null,null,null,null,null,null,null,0,0]
[18,null,null,null,null,null,null,null,null,null,null,null,null,0,0]
[19,null,null,null,null,null,null,null,null,null,null,null,null,0,0]
[20,null,null,null,null,null,null,null,null,null,null,null,null,0,0]
[21,null,null,null,null,null,null,null,null,null,null,null,null,0,0]
[22,null,null,null,null,null,null,null,null,null,null,null,null,0,0]
[23,null,null,null,null,null,null,null,null,null,null,null,null,0,0]
[24,null,null,null,null,null,null,null,null,null,null,null,null,0,0]
[25,null,null,null,null,null,null,null,null,null,null,null,null,0,0]
[26,null,null,null,null,null,null,null,null,null,null,null,null,0,0]
[27,null,null,null,null,null,null,null,null,null,null,null,null,0,0]
[28,null,null,null,null,null,null,null,null,null,null,null,null,0,0]
[29,null,null,null,null,null,null,null,null,null,null,null,null,0,0]
[30,null,null,null,null,null,null,null,null,null,null,null,null,0,0]
[31,null,null,null,null,null,null,null,null,null,null,null,null,0,0]
[32,null,null,null,null,null,null,null,null,null,null,null,null,0,0]
[33,null,null,null,null,null,null,null,null,null,null,null,null,0,0]
[]
[null,null,null,null,null,null,null,null,null,null,null,null,null,null,{"$f":"SUM(O18:O50)","v":0},"m²"]

{"sheet":"8 Special panel","index":8,"n_rows":57,"n_cols":15,"rows_kept":57,"cut":false,"hidden":true,"merged":[[54,8,54,10],[54,11,54,12],[51,8,51,10],[51,11,51,12],[52,8,52,10],[52,11,52,12],[53,8,53,10],[53,11,53,12],[48,8,48,10],[48,11,48,12],[49,8,49,10],[49,11,49,12],[50,8,50,10],[50,11,50,12],[45,8,45,10],[45,11,45,12],[46,8,46,10],[46,11,46,12],[47,8,47,10],[47,11,47,12],[42,8,42,10],[42,11,42,12],[43,8,43,10],[43,11,43,12],[44,8,44,10],[44,11,44,12],[39,8,39,10],[39,11,39,12],[40,8,40,10],[40,11,40,12],[41,8,41,10],[41,11,41,12],[36,8,36,10],[36,11,36,12],[37,8,37,10],[37,11,37,12],[38,8,38,10],[38,11,38,12],[33,8,33,10],[33,11,33,12],[34,8,34,10],[34,11,34,12],[35,8,35,10],[35,11,35,12],[30,8,30,10],[30,11,30,12],[31,8,31,10],[31,11,31,12],[32,8,32,10],[32,11,32,12],[27,8,27,10],[27,11,27,12],[28,8,28,10],[28,11,28,12],[29,8,29,10],[29,11,29,12],[24,8,24,10],[24,11,24,12],[25,8,25,10],[25,11,25,12],[26,8,26,10],[26,11,26,12],[22,8,22,10],[22,11,22,12],[23,8,23,10],[23,11,23,12],[18,11,18,12],[19,8,19,10],[19,11,19,12],[20,8,20,10],[20,11,20,12],[18,8,18,10],[0,0,2,3],[0,4,0,6],[0,7,0,9],[0,11,0,12],[1,4,2,9],[1,11,2,12],[4,8,4,9],[5,8,5,9],[21,8,21,10],[21,11,21,12],[13,7,13,9],[13,3,13,6],[6,7,6,9],[4,0,4,2],[4,3,4,6],[5,0,5,2],[5,3,5,6],[8,7,8,9],[8,10,9,12],[8,0,8,1],[8,2,8,3],[8,4,8,6],[9,7,9,9],[9,0,9,1],[9,2,9,3],[9,4,9,6],[6,10,7,12],[6,0,6,1],[6,2,6,6],[7,7,7,9],[7,0,7,1],[7,2,7,6],[4,11,4,12],[5,11,5,12],[10,0,10,6],[10,7,10,9],[10,10,10,12],[11,0,11,12],[15,8,15,10],[15,11,15,12],[16,8,16,10],[16,11,16,12],[17,8,17,10],[12,10,13,12],[14,0,14,12],[12,0,12,1],[13,0,13,1],[12,2,13,2],[12,3,12,6],[12,7,12,9],[17,11,17,12]]}
[null,null,null,null,"LIBERTA",null,null,"Select product",null,null,null,"Date"]
[null,null,null,null,"Panel specification - Special panel"]
[]
[]
["Ruukki SAP order no.",null,null,null,null,null,null,"Material","<Select option>"]
["PO no./ project"]
["Main order",null,null,null,null,null,null,"Fastening holes"]
[null,null,null,null,null,null,null,"Standard hole pattern"]
[null,null,null,null,null,null,null,"Perforation options"]
[null,null,null,null,null,null,null,"No perforation"]
[null,null,null,null,null,null,null,"Brick pattern",null,null,"No brick pattern"]
[]
["Price €/m²",null,"Sizes","Sheet size",null,null,null," 1400x3090"]
["___________"]
[]
["ITEM","A (mm)","B (mm)","C (mm)","D (mm)",null,"Amount ","Part ID","NOTE",null,null,"Packing info"]
["Example","2500","500",30,15,null,"5","SW01","drawing SW00",null,null,"East wall",null,"m²/pc","m²"]
[1,null,null,null,null,null,null,null,null,null,null,null,null,{"$f":"B18*C18/10^6","v":0},{"$f":"N18*G18","v":0}]
[2,null,null,null,null,null,null,null,null,null,null,null,null,{"$f":"B19*C19/10^6","v":0},{"$f":"N19*G19","v":0}]
[3,null,null,null,null,null,null,null,null,null,null,null,null,0,0]
[4,null,null,null,null,null,null,null,null,null,null,null,null,0,0]
[5,null,null,null,null,null,null,null,null,null,null,null,null,0,0]
[6,null,null,null,null,null,null,null,null,null,null,null,null,0,0]
[7,null,null,null,null,null,null,null,null,null,null,null,null,0,0]
[8,null,null,null,null,null,null,null,null,null,null,null,null,0,0]
[9,null,null,null,null,null,null,null,null,null,null,null,null,0,0]
[10,null,null,null,null,null,null,null,null,null,null,null,null,0,0]
[11,null,null,null,null,null,null,null,null,null,null,null,null,0,0]
[12,null,null,null,null,null,null,null,null,null,null,null,null,0,0]
[13,null,null,null,null,null,null,null,null,null,null,null,null,0,0]
[14,null,null,null,null,null,null,null,null,null,null,null,null,0,0]
[15,null,null,null,null,null,null,null,null,null,null,null,null,0,0]
[16,null,null,null,null,null,null,null,null,null,null,null,null,0,0]
[17,null,null,null,null,null,null,null,null,null,null,null,null,0,0]
[18,null,null,null,null,null,null,null,null,null,null,null,null,0,0]
[19,null,null,null,null,null,null,null,null,null,null,null,null,0,0]
[20,null,null,null,null,null,null,null,null,null,null,null,null,0,0]
[21,null,null,null,null,null,null,null,null,null,null,null,null,0,0]
[22,null,null,null,null,null,null,null,null,null,null,null,null,0,0]
[23,null,null,null,null,null,null,null,null,null,null,null,null,0,0]
[24,null,null,null,null,null,null,null,null,null,null,null,null,0,0]
[25,null,null,null,null,null,null,null,null,null,null,null,null,0,0]
[26,null,null,null,null,null,null,null,null,null,null,null,null,0,0]
[27,null,null,null,null,null,null,null,null,null,null,null,null,0,0]
[28,null,null,null,null,null,null,null,null,null,null,null,null,0,0]
[29,null,null,null,null,null,null,null,null,null,null,null,null,0,0]
[30,null,null,null,null,null,null,null,null,null,null,null,null,0,0]
[31,null,null,null,null,null,null,null,null,null,null,null,null,0,0]
[32,null,null,null,null,null,null,null,null,null,null,null,null,0,0]
[33,null,null,null,null,null,null,null,null,null,null,null,null,0,0]
[34,null,null,null,null,null,null,null,null,null,null,null,null,0,0]
[35,null,null,null,null,null,null,null,null,null,null,null,null,0,0]
[36,null,null,null,null,null,null,null,null,null,null,null,null,0,0]
[37,null,null,null,null,null,null,null,null,null,null,null,null,0,0]
[38,null,null,null,null,null,null,null,null,null,null,null,null,{"$f":"B55*C55/10^6","v":0},{"$f":"N55*G55","v":0}]
[]
[null,null,null,null,null,null,null,null,null,null,null,null,null,null,{"$f":"SUM(O18:O55)","v":0}]

{"sheet":"9 Support studs","index":9,"n_rows":52,"n_cols":15,"rows_kept":52,"cut":false,"hidden":true,"merged":[[50,1,50,2],[50,3,50,4],[50,8,50,9],[50,10,50,11],[51,0,52,0],[51,1,52,6],[51,7,52,7],[51,8,52,13],[49,1,49,2],[49,3,49,4],[49,8,49,9],[49,10,49,11],[48,0,48,4],[48,7,48,11],[23,7,31,11],[39,0,47,4],[39,7,47,11],[37,0,37,13],[38,0,38,2],[38,3,38,4],[38,7,38,9],[38,10,38,11],[32,7,32,11],[32,0,32,4],[34,1,34,2],[34,3,34,4],[34,8,34,9],[34,10,34,11],[35,0,36,0],[35,1,36,6],[35,7,36,7],[35,8,36,13],[33,1,33,2],[33,3,33,4],[33,8,33,9],[33,10,33,11],[23,0,31,4],[22,0,22,2],[22,3,22,4],[19,0,20,0],[19,1,20,6],[19,7,20,7],[19,8,20,13],[21,0,21,13],[22,7,22,9],[22,10,22,11],[18,10,18,11],[17,3,17,4],[17,10,17,11],[7,0,15,4],[7,7,15,11],[16,0,16,4],[17,1,17,2],[18,3,18,4],[18,1,18,2],[17,8,17,9],[18,8,18,9],[6,0,6,2],[6,3,6,4],[6,7,6,9],[6,10,6,11],[16,7,16,11],[0,11,0,13],[1,11,2,13],[5,0,5,13],[4,0,4,2],[4,3,4,6],[0,0,2,3],[0,4,0,6],[0,7,0,9],[4,7,4,9],[4,10,4,13],[1,4,2,10]]}
[null,null,null,null,"LIBERTA",null,null,"Select product",null,null,null,"Date"]
[null,null,null,null,"Accessory specification - Support studs"]
[]
[]
["Ruukki SAP order no.",null,null,null,null,null,null,"PO no./ project"]
[]
["Support stud",null,null,"CA1SS1",null,"Length","Amount ","Support stud",null,null,"CA1SS2",null,"Length","Amount "]
[null,null,null,null,null,"(mm)","(pcs)",null,null,null,null,null,"(mm)","(pcs)"]
[]
[null,null,null,null,null,null,null,null,null,null,null,null,null,null," "]
[]
[]
[]
[]
[]
[]
["<Select option>",null,null,null,null,null,null,"<Select option>"]
[]
[]
["NOTE",null,null,null,null,null,null,"NOTE"]
[]
[]
["Support stud",null,null,"CA1RS1",null,"Length","Amount ","Support stud",null,null,"CA1SSC1",null,"Length","Amount "]
[null,null,null,null,null,"(mm)","(pcs)",null,null,null,null,null,"(mm)","(pcs)"]
[]
[]
[]
[]
[]
[]
[]
[]
["<Select option>",null,null,null,null,null,null,"<Select option>"]
[]
[]
["NOTE",null,null,null,null,null,null,"NOTE"]
[]
[]
["Support stud",null,null,"CA1SS5",null,"Length","Amount ","Support stud",null,null,"CA1SS6",null,"Length","Amount "]
[null,null,null,null,null,"(mm)","(pcs)",null,null,null,null,null,"(mm)","(pcs)"]
[]
[]
[]
[]
[]
[]
[]
[]
["<Select option>",null,null,null,null,null,null,"<Select option>"]
[]
[]
["NOTE",null,null,null,null,null,null,"NOTE"]

{"sheet":"10 Flashings","index":10,"n_rows":56,"n_cols":14,"rows_kept":56,"cut":false,"hidden":true,"merged":[[51,0,60,6],[51,7,51,10],[51,11,51,13],[53,8,53,9],[53,10,53,11],[60,9,60,13],[52,8,52,9],[52,10,52,11],[54,9,54,13],[55,9,55,13],[56,9,56,13],[57,9,57,13],[58,9,58,13],[59,9,59,13],[50,4,50,6],[40,7,40,10],[40,11,40,13],[41,8,41,9],[17,0,17,3],[28,0,28,3],[39,0,39,3],[17,4,17,6],[28,4,28,6],[39,4,39,6],[50,7,50,13],[50,0,50,3],[38,0,38,6],[32,9,33,9],[32,10,33,10],[32,11,33,11],[28,7,28,13],[42,8,42,9],[42,10,42,11],[30,10,30,11],[41,10,41,11],[39,7,39,13],[32,12,33,12],[32,13,33,13],[43,9,44,9],[43,10,44,10],[43,11,44,11],[29,7,29,10],[29,11,29,13],[30,8,30,9],[31,8,31,9],[31,10,31,11],[43,12,44,12],[43,13,44,13],[6,7,6,13],[0,0,2,3],[0,4,0,6],[0,7,0,9],[0,11,0,13],[1,11,2,13],[4,0,4,2],[4,3,4,6],[5,0,5,13],[6,0,6,3],[6,4,6,6],[4,7,4,9],[4,10,4,13],[1,4,2,10],[40,0,48,6],[49,0,49,6],[10,9,11,9],[10,10,11,10],[10,11,11,11],[29,0,37,6],[18,7,18,10],[18,11,18,13],[19,8,19,9],[20,8,20,9],[20,10,20,11],[19,10,19,11],[21,9,22,9],[21,10,22,10],[21,11,22,11],[21,12,22,12],[10,13,11,13],[7,0,15,6],[16,0,16,6],[18,0,26,6],[27,0,27,6],[17,7,17,13],[7,7,7,10],[7,11,7,13],[8,8,8,9],[9,8,9,9],[9,10,9,11],[21,13,22,13],[8,10,8,11],[10,12,11,12]]}
[null,null,null,null,"LIBERTA",null,null,"Select product",null,null,null,"Date"]
[null,null,null,null,"Accessory specification - Flashings"]
[]
[]
["Ruukki SAP order no.",null,null,null,null,null,null,"PO no./ project"]
[]
["External corner flashing",null,null,null,"CA1EC1X",null,null,"MATERIALS, COATINGS AND COLOURS"]
[null,null,null,null,null,null,null,"<Select option>"]
[]
[]
[null,null,null,null,null,null,null,"Length","Amount ","A","B",null,null,"NOTE"]
[null,null,null,null,null,null,null,"(mm)","(pcs)"]
[]
[]
[]
[]
["Add the dimensions marked with letters into the notes"]
["Internal corner flashing",null,null,null,"CA1IC1X",null,null,"MATERIALS, COATINGS AND COLOURS"]
[null,null,null,null,null,null,null,"<Select option>"]
[]
[]
[null,null,null,null,null,null,null,"Length","Amount ","A","B",null,null,"NOTE"]
[null,null,null,null,null,null,null,"(mm)","(pcs)"]
[]
[]
[]
[]
["Add the dimensions marked with letters into the notes"]
["Internal corner flashing",null,null,null,"CA1IC2X",null,null,"MATERIALS, COATINGS AND COLOURS"]
[null,null,null,null,null,null,null,"<Select option>"]
[]
[]
[null,null,null,null,null,null,null,"Length","Amount ","A","B","C",null,"NOTE"]
[null,null,null,null,null,null,null,"(mm)","(pcs)"]
[]
[]
[]
[]
["Add the dimensions marked with letters into the notes"]
["Internal corner flashing",null,null,null,"CA1IC5X",null,null,"MATERIALS, COATINGS AND COLOURS"]
[null,null,null,null,null,null,null,"<Select option>"]
[]
[]
[null,null,null,null,null,null,null,"Length","Amount ","A","B","C","K","NOTE"]
[null,null,null,null,null,null,null,"(mm)","(pcs)"]
[]
[]
[]
[]
["Add the dimensions marked with letters into the notes"]
["Other",null,null,null,"_______",null,null,"MATERIALS, COATINGS AND COLOURS"]
[null,null,null,null,null,null,null,"<Select option>"]
[]
[]
[null,null,null,null,null,null,null,"Length","Amount ","NOTE"]
[null,null,null,null,null,null,null,"(mm)","(pcs)"]

{"sheet":"11 Flashings 2","index":11,"n_rows":56,"n_cols":14,"rows_kept":56,"cut":false,"hidden":true,"merged":[[19,10,19,11],[30,10,30,11],[41,10,41,11],[52,10,52,11],[49,0,49,6],[20,10,20,11],[31,10,31,11],[42,10,42,11],[21,10,22,10],[21,11,22,11],[29,0,37,6],[31,8,31,9],[29,7,29,10],[29,11,29,13],[30,8,30,9],[32,11,33,11],[9,10,9,11],[39,0,39,3],[39,4,39,6],[39,7,39,13],[40,0,48,6],[40,7,40,10],[40,11,40,13],[41,8,41,9],[42,8,42,9],[43,9,44,9],[43,10,44,10],[38,0,38,6],[43,11,44,11],[43,12,44,12],[43,13,44,13],[21,9,22,9],[21,12,22,12],[21,13,22,13],[28,7,28,13],[6,0,6,3],[17,0,17,3],[28,0,28,3],[6,4,6,6],[17,4,17,6],[28,4,28,6],[9,8,9,9],[10,9,11,9],[10,10,11,10],[10,11,11,11],[10,12,11,12],[10,13,11,13],[6,7,6,13],[32,9,33,9],[32,10,33,10],[32,12,33,12],[32,13,33,13],[7,0,15,6],[16,0,16,6],[27,0,27,6],[18,0,26,6],[20,8,20,9],[17,7,17,13],[18,7,18,10],[18,11,18,13],[19,8,19,9],[7,7,7,10],[7,11,7,13],[8,8,8,9],[4,0,4,2],[4,3,4,6],[5,0,5,13],[4,7,4,9],[4,10,4,13],[0,0,2,3],[0,4,0,6],[0,7,0,9],[0,11,0,13],[1,11,2,13],[1,4,2,10],[8,10,8,11],[60,0,60,6],[50,0,50,3],[50,4,50,6],[50,7,50,13],[51,0,59,6],[51,7,51,10],[51,11,51,13],[52,8,52,9],[53,8,53,9],[53,10,53,11],[54,9,55,9],[54,10,55,10],[54,11,55,11],[54,12,55,12],[54,13,55,13]]}
[null,null,null,null,"LIBERTA",null,null,"Select product",null,null,null,"Date"]
[null,null,null,null,"Accessory specification - Flashings 2"]
[]
[]
["Ruukki SAP order no.",null,null,null,null,null,null,"PO no./ project"]
[]
[null,null,null,null,null,null,null,"MATERIALS, COATINGS AND COLOURS"]
[null,null,null,null,null,null,null,"<Select option>"]
[]
[]
[null,null,null,null,null,null,null,"Length","Amount ","A","B","C","K","NOTE"]
[null,null,null,null,null,null,null,"(mm)","pcs"]
[]
[]
[]
[]
["Add the dimensions marked with letters into the notes"]
[null,null,null,null,null,null,null,"MATERIALS, COATINGS AND COLOURS"]
[null,null,null,null,null,null,null,"<Select option>"]
[]
[]
[null,null,null,null,null,null,null,"Length","Amount ","A","B","C","K","NOTE"]
[null,null,null,null,null,null,null,"(mm)","pcs"]
[]
[]
[]
[]
["Add the dimensions marked with letters into the notes"]
[null,null,null,null,null,null,null,"MATERIALS, COATINGS AND COLOURS"]
[null,null,null,null,null,null,null,"<Select option>"]
[]
[]
[null,null,null,null,null,null,null,"Length","Amount ","A","B","C","K","NOTE"]
[null,null,null,null,null,null,null,"(mm)","pcs"]
[]
[]
[]
[]
[]
[null,null,null,null,null,null,null,"MATERIALS, COATINGS AND COLOURS"]
[null,null,null,null,null,null,null,"<Select option>"]
[]
[]
[null,null,null,null,null,null,null,"Length","Amount ","A","B","C","K","NOTE"]
[null,null,null,null,null,null,null,"(mm)","pcs"]
[]
[]
[]
[]
[]
[null,null,null,null,null,null,null,"MATERIALS, COATINGS AND COLOURS"]
[null,null,null,null,null,null,null,"<Select option>"]
[]
[]
[null,null,null,null,null,null,null,"Length","Amount ","A","B","C","K","NOTE"]
[null,null,null,null,null,null,null,"(mm)","pcs"]

{"sheet":"12 Other flashings","index":12,"n_rows":45,"n_cols":14,"rows_kept":45,"cut":false,"hidden":true,"merged":[[39,0,39,2],[39,3,39,6],[38,0,38,13],[39,7,39,13],[40,0,49,6],[43,9,44,9],[43,10,44,10],[43,11,44,11],[43,12,44,12],[43,13,44,13],[40,7,40,10],[40,11,40,13],[41,8,41,9],[41,10,41,11],[42,8,42,9],[42,10,42,11],[0,0,2,3],[0,4,0,6],[0,7,0,9],[0,11,0,13],[1,4,2,9],[1,11,2,13],[4,0,4,2],[4,3,4,6],[5,0,5,13],[4,7,4,9],[4,10,4,13],[6,7,6,13],[6,0,6,2],[6,3,6,6],[10,9,11,9],[10,10,11,10],[10,11,11,11],[10,12,11,12],[10,13,11,13],[16,0,16,13],[17,7,17,13],[17,0,17,2],[17,3,17,6],[7,0,15,6],[7,7,7,10],[7,11,7,13],[8,8,8,9],[8,10,8,11],[9,8,9,9],[9,10,9,11],[21,13,22,13],[18,7,18,10],[18,11,18,13],[19,8,19,9],[19,10,19,11],[20,8,20,9],[20,10,20,11],[18,0,26,6],[21,9,22,9],[21,10,22,10],[21,11,22,11],[21,12,22,12],[27,0,27,13],[28,7,28,13],[28,0,28,2],[28,3,28,6],[32,13,33,13],[29,0,37,6],[31,10,31,11],[29,7,29,10],[29,11,29,13],[30,8,30,9],[30,10,30,11],[31,8,31,9],[56,11,56,12],[57,11,57,12],[58,11,58,12],[54,11,54,12],[55,11,55,12],[51,11,51,12],[52,11,52,12],[53,11,53,12],[32,9,33,9],[32,10,33,10],[32,11,33,11],[32,12,33,12]]}
[null,null,null,null,"LIBERTA",null,null,"Select product",null,null,null,"Date"]
[null,null,null,null,"Accessory specification - Other flashings"]
[]
[]
["Ruukki SAP order no.",null,null,null,null,null,null,"PO no./ project"]
[]
["Other:",null,null,"_______",null,null,null,"MATERIALS, COATINGS AND COLOURS"]
[null,null,null,null,null,null,null,"<Select option>"]
[]
[]
[null,null,null,null,null,null,null,"Length","Amount ","A","B","C","K","NOTE"]
[null,null,null,null,null,null,null,"(mm)","pcs"]
[]
[]
[]
[]
[]
["Other:",null,null,"_________",null,null,null,"MATERIALS, COATINGS AND COLOURS"]
[null,null,null,null,null,null,null,"<Select option>"]
[]
[]
[null,null,null,null,null,null,null,"Length","Amount ","A","B","C","K","NOTE"]
[null,null,null,null,null,null,null,"(mm)","pcs"]
[]
[]
[]
[]
[]
["Other:",null,null,"_________",null,null,null,"MATERIALS, COATINGS AND COLOURS"]
[null,null,null,null,null,null,null,"<Select option>"]
[]
[]
[null,null,null,null,null,null,null,"Length","Amount ","A","B","C","K","NOTE"]
[null,null,null,null,null,null,null,"(mm)","pcs"]
[]
[]
[]
[]
[]
["Other:",null,null,"_________",null,null,null,"MATERIALS, COATINGS AND COLOURS"]
[null,null,null,null,null,null,null,"<Select option>"]
[]
[]
[null,null,null,null,null,null,null,"Length","Amount ","A","B","C","K","NOTE"]
[null,null,null,null,null,null,null,"(mm)","pcs"]

{"sheet":"13 Screws and other acc.","index":13,"n_rows":54,"n_cols":12,"rows_kept":54,"cut":false,"hidden":true,"merged":[[54,10,54,11],[55,10,55,11],[39,0,39,1],[51,0,56,6],[38,0,38,6],[47,0,47,11],[48,0,48,6],[49,0,49,1],[48,7,48,11],[49,7,49,11],[49,2,49,6],[46,10,46,11],[40,7,40,11],[42,10,42,11],[43,10,43,11],[45,10,45,11],[41,7,41,11],[1,11,2,11],[3,0,3,11],[7,7,7,11],[5,0,5,11],[6,7,6,11],[0,0,2,3],[0,4,0,6],[0,7,0,9],[4,0,4,2],[4,3,4,6],[6,3,6,6],[6,0,6,2],[4,7,4,9],[4,10,4,11],[1,4,2,10],[13,0,13,11],[8,9,8,11],[9,9,9,11],[10,9,10,11],[11,9,11,11],[12,9,12,11],[7,0,11,6],[12,0,12,4],[12,5,12,6],[56,10,56,11],[20,5,20,6],[20,0,20,4],[22,0,22,2],[22,3,22,6],[28,0,28,4],[21,0,21,11],[22,7,22,11],[23,7,23,11],[24,9,24,11],[25,9,25,11],[26,9,26,11],[23,0,27,6],[27,9,27,11],[50,2,50,6],[50,0,50,1],[14,7,14,11],[14,3,14,6],[14,0,14,2],[52,10,52,11],[53,10,53,11],[28,9,28,11],[28,5,28,6],[40,2,40,6],[39,7,39,11],[39,2,39,6],[38,7,38,11],[29,0,29,11],[37,0,37,11],[44,10,44,11],[41,0,46,6],[40,0,40,1],[18,9,18,11],[19,9,19,11],[20,9,20,11],[15,0,19,6],[15,7,15,11],[16,9,16,11],[17,9,17,11],[36,0,36,4],[36,5,36,6],[36,9,36,11],[30,3,30,6],[30,7,30,11],[31,0,35,6],[31,7,31,11],[32,9,32,11],[33,9,33,11],[34,9,34,11],[35,9,35,11],[30,0,30,2]]}
[null,null,null,null,"LIBERTA",null,null,"Select product",null,null,null,"Date"]
[null,null,null,null,"Accessory specification - Screws and other acc."]
[]
[]
["Ruukki SAP order no.",null,null,null,null,null,null,"PO no./ project"]
[]
["Screw",null,null,"S3H48022D02S4C",null,null,null,"MATERIALS, COATINGS AND COLOURS"]
[null,null,null,null,null,null,null,"<Select option>"]
[null,null,null,null,null,null,null,"Amount ",null,"NOTE"]
[null,null,null,null,null,null,null,"pcs"]
[]
[]
["Package size:",null,null,null,null,250]
[]
["Screw",null,null,"S3H55022L02S4B",null,null,null,"MATERIALS, COATINGS AND COLOURS"]
[null,null,null,null,null,null,null,"<Select option>"]
[null,null,null,null,null,null,null,"Amount ",null,"NOTE"]
[null,null,null,null,null,null,null,"pcs"]
[]
[]
["Package size:",null,null,null,null,100]
[]
["Other:",null,null,"__________",null,null,null,"MATERIALS, COATINGS AND COLOURS"]
[null,null,null,null,null,null,null,"<Select option>"]
[null,null,null,null,null,null,null,"Amount ",null,"NOTE"]
[null,null,null,null,null,null,null,"pcs"]
[]
[]
["Package size:"]
[]
["Other:",null,null,"__________",null,null,null,"MATERIALS, COATINGS AND COLOURS"]
[null,null,null,null,null,null,null,"<Select option>"]
[null,null,null,null,null,null,null,"Amount ",null,"NOTE"]
[null,null,null,null,null,null,null,"pcs"]
[]
[]
["Package size:"]
[]
["Other accessory",null,null,null,null,null,null,"MATERIALS, COATINGS AND COLOURS"]
["Part nr",null,null,null,null,null,null,"Material thickness / material / coating / colour"]
["Additional info"]
[]
[null,null,null,null,null,null,null,"Amount ","Length","Price","NOTE"]
[null,null,null,null,null,null,null,"pcs","(mm)"]
[]
[]
[]
[]
["Other accessory",null,null,null,null,null,null,"MATERIALS, COATINGS AND COLOURS"]
["Part nr",null,null,null,null,null,null,"Material thickness / material / coating / colour"]
["Additional info"]
[]
[null,null,null,null,null,null,null,"Amount ","Length","Price","NOTE"]
[null,null,null,null,null,null,null,"pcs","(mm)"]

{"sheet":"14 Flat sheets","index":14,"n_rows":46,"n_cols":12,"rows_kept":46,"cut":false,"hidden":true,"merged":[[4,7,4,9],[4,10,4,11],[22,0,22,2],[23,0,23,2],[33,0,33,2],[17,0,17,6],[12,10,12,11],[13,10,13,11],[14,10,14,11],[15,10,15,11],[18,7,18,11],[19,7,19,11],[20,7,20,11],[21,10,21,11],[22,10,22,11],[23,10,23,11],[34,0,34,2],[43,0,43,2],[29,0,32,2],[35,0,37,2],[24,0,26,2],[39,0,39,6],[40,0,42,2],[40,3,43,6],[38,0,38,11],[28,0,28,6],[37,10,37,11],[24,10,24,11],[32,10,32,11],[34,3,37,6],[23,3,26,6],[39,7,39,11],[5,13,9,19],[15,14,18,20],[11,0,11,2],[12,0,12,2],[7,3,11,6],[12,3,15,6],[7,0,10,2],[13,0,15,2],[18,3,22,6],[18,0,21,2],[16,0,16,11],[7,7,7,11],[8,7,8,11],[9,7,9,11],[10,10,10,11],[11,10,11,11],[45,0,48,2],[1,11,2,11],[3,0,3,11],[5,0,5,11],[6,7,6,11],[0,0,2,3],[0,4,0,6],[0,7,0,9],[1,4,2,9],[4,0,4,2],[4,3,4,6],[6,0,6,6],[27,0,27,11],[17,7,17,11],[44,0,44,2],[29,3,33,6],[44,3,48,6],[43,10,43,11],[44,10,44,11],[45,10,45,11],[25,10,25,11],[28,7,28,11],[29,7,29,11],[30,7,30,11],[31,7,31,11],[36,10,36,11],[48,10,48,11],[26,10,26,11],[33,10,33,11],[34,10,34,11],[35,10,35,11],[46,10,46,11],[56,11,56,12],[57,11,57,12],[58,11,58,12],[53,11,53,12],[54,11,54,12],[55,11,55,12],[40,7,40,11],[47,10,47,11],[51,11,51,12],[52,11,52,12],[41,7,41,11],[42,7,42,11]]}
[null,null,null,null,"LIBERTA",null,null,"Select product",null,null,null,"Date"]
[null,null,null,null,"Accessory specification - Flat sheets"]
[]
[]
["Ruukki SAP order no.",null,null,null,null,null,null,"PO no./ project"]
[]
["Flat sheets",null,null,null,null,null,null,"MATERIALS, COATINGS AND COLOURS"]
[null,null,null," 1000 mm",null,null,null,"Material thickness / material / coating / colour"]
[]
[]
[null,null,null,null,null,null,null,"Length","Amount ","€/m","NOTE"]
["Width:",null,null,null,null,null,null,"(mm)","pcs"]
["Typical lengths:",null,null,"2000, 3000, 4000, 5000 mm"]
[]
[]
[]
[]
["Flat sheets",null,null,null,null,null,null,"MATERIALS, COATINGS AND COLOURS"]
[null,null,null,"1250 mm",null,null,null,"Material thickness / material / coating / colour"]
[]
[]
[null,null,null,null,null,null,null,"Length","Amount ","€/m","NOTE"]
["Width:",null,null,null,null,null,null,"(mm)","pcs"]
["Typical lengths:",null,null," 2000, 3000, 4000, 5000 mm"]
[]
[]
[]
[]
["Flat sheets",null,null,null,null,null,null,"MATERIALS, COATINGS AND COLOURS"]
[null,null,null,"1500 mm",null,null,null,"Material thickness / material / coating / colour"]
[]
[]
[null,null,null,null,null,null,null,"Length","Amount ","€/m","NOTE"]
["Width:",null,null,null,null,null,null,"(mm)","pcs"]
["Typical lengths:",null,null,"2000, 3000, 4000, 5000 mm"]
[]
[]
[]
[]
["Flat sheets",null,null,null,null,null,null,"MATERIALS, COATINGS AND COLOURS"]
[null,null,null,null,null,null,null,"Material thickness / material / coating / colour"]
[]
[]
[null,null,null,null,null,null,null,"Length","Amount ","€/m","NOTE"]
["Width:",null,null,null,null,null,null,"(mm)","pcs"]
["Typical lengths:"]

{"sheet":"Translation","index":15,"n_rows":180,"n_cols":4,"rows_kept":180,"cut":false,"hidden":true,"merged":[]}
["ID","English","Suomi","Polska"]
[2,"ORDER FORM","TILAUSKAAVAKE","FORMULARZ ZAMÓWIENIA"]
[3,"Language","Kieli","Jezyk"]
[4,"Ruukki SAP order no.","Ruukin SAP-tilausnumero","Ruukki SAP nr zamówienia"]
[5,"Date","Päivämäärä","Data"]
[6,"Send to:","Vastaanottaja","Wysłać do"]
[7,"Italic underlined = mandatory information","Kursivoitu alleviivattu = pakollinen tieto","kursywa podkreślona = informacje obowiązkowe"]
[8,"BUYER","ASIAKAS","KUPUJĄCY"]
[9,"SHIP-TO PARTY (DELIVERY ADDRESS)","TOIMITUSOSOITE (SHIP-TO PARTY)","ADRES DOSTAWY"]
[10,"SOLD-TO PARTY (BUYER)","TILAUSASIAKAS (SOLD-TO PARTY)","KUPUJĄCY"]
[11,"BILL-TO PARTY (INVOICING CUSTOMER)","LASKUTUSASIAKAS (BILL-TO PARTY)","DANE DO FAKTURY"]
[12,"Customer no.","Asiakasnumero","Nr klienta"]
[13,"Name","Nimi","Nazwa"]
[14,"Address","Osoite","Adres"]
[15,"Person","Henkilö","Nazwisko"]
[16,"Tel.","Puh.nro.","Tel."]
[17,"email","email","email"]
[18,"ORDER INFORMATION","TILAUSTIEDOT","INFO O ZAMÓWIENIU"]
[19,"Short project name (3-10 characters)","Projektin nimi","Krótka nazwa projektu (3-10 znaków)"]
[20,"PO no./ project","Tilausnumero/ Projekti","Nr i nazwa/ projekt"]
[21,"Wholesaler order nr","Tukkuliikkeen tilausnumero","Nr zamówienia klienta"]
[22,"Ruukki Sales ja CST person","Ruukin myyjä ja CST yhteyshenkilö","Handlowiec i pracownik obsługi klienta CST"]
[23,"Billing fee","Laskutuspalkkio","Opłata rozliczeniowa"]
[24,"Extra order","Lisätilaus","Dodatkowe zamówienie"]
[25,"Original Ruukki SAP order no.","Alkuperäinen Ruukin SAP-tilausnumero","Originalny numer zamówienia Ruukki SAP."]
[26,"Project-specific material ordered","Projektikohtainen raaka-aine tilattu","Zamówienie specjalne materiału"]
[27]
[28,"Additional info","Lisätietoja","Dodatkowe informacje"]
[29,"TERMS","EHDOT","WARUNKI"]
[30,"Delivery term","Toimitusehto","Warunki dostawy"]
[31,"Place:","Paikka:","Miejsce:"]
[32,"Extra charges","Lisämaksut","Dodatkowe opłaty"]
[33,"Insurance","Vakuutus","Ubezpieczenie"]
[34,"Package","Pakkaus","Pakowanie"]
[35,"Price","Hinta","Cena"]
[36,"Freight","Rahti","Transport"]
[37,"Other","Muu","Inne"]
[38,"ATTACHED PRIMO AND ACCESSORY SPECIFICATIONS","LIITTEENÄ PRIMO KASETTI-JA TARVIKE-ERITTELYT","ZAŁĄCZONE SPECYFIKACJE KASETONÓW I AKCESORIÓW"]
[39]
[40,"(pcs)","(kpl.)","(szt.)"]
[41,"pcs","kpl.","szt."]
[42,"NOTE","HUOM.","UWAGI"]
[43,"No","Ei","Nie"]
[44,"Original Ruukki order nr.","Alkuperäinen Ruukin tilausnumero","Originalny numer zamówienia Ruukki"]
[45,"Amount (pcs)","Määrä (kpl)","Ilość (szt.)"]
[46,"Amount (m²)","Määrä (m²)","Ilość (m²)"]
[47,"Order date","Tilauspäivämäärä","Data zamówienia"]
[48,"Fitting order to follow","Lisätilaus tulossa","Zamówienie uzupełniające"]
[49,"Estimated date","Arviotu päivämäärä","Szacowana data"]
[50,"Yes","Kyllä","Tak"]
[51,"FCA (Pick-up)","FCA (Nouto)","FCA (odbiór własny)"]
[52,"DAP (Factory transport)","DAP (Tehtaan kuljetus)","DAP (transport z wytwórni na miejsce)"]
[53,"Horizontal brick pattern","Vaakasuuntainen tiilikuvio","Poziomy wzór cegły"]
[54,"Vertical brick pattern","Pystysuuntainen tiilikuvio","Pionowy wzór cegły"]
[55,"Make sure to send panel fastening hole pattern as a separate drawing","Muista lähettää kiinnitysreikäohje erillisenä piirustuksena","Pamiętaj, aby wysłać wzór otworowania do mocowania kasetonu jako osobny rysunek"]
[56,"Standard hole pattern","Vakio kiinnitysreikäjako","Standardowe otworowanie"]
[57,"Custom hole pattern","Tilauskohtainen kiinnitysreikäjako","Niestandardowe otworowanie"]
[58,"Fastening holes","Kiinnitysreiät","Otwory mocujące"]
[59,"Add into NOTE box a:b:c:d. Perforation options can be seen on the right","Lisää HUOM.-sarakkeeseen mitat a;b;c;d. Perforointivaihtoehdot kaavakkeen oikealla puolella","Dodać w uwagach wymiary a,b,c,d. Opcje perforacji można zobaczyć po prawej stronie"]
[60,"Make sure to send art peforation as a separate drawing","Muista lähettää piirustukset kuvioperforoinnista erillisessä piirustuksessa","Pamiętaj, aby wysłać perforację artystyczną jako oddzielny rysunek"]
[61,"Perforation options","Rei'itys vaihtoehdot","Opcje perforacji"]
[62,"Symmetrical perforation","Tasainen rei'itys","Symetryczna perforacja"]
[63,"Art perforation","Kuviorei'itys","Perforacja artystyczna"]
[64,"Panel specification","Kasettierittely","Specyfikacja paneli"]
[65,"Basic panel","Peruskasetit","Kaseton podstawowy"]
[66,"Corner panel","Kulmakasetit","Kaseton naroży"]
[67,"Special panel","Erikoiskasetit","Kaseton specjalny"]
[68,"Support studs","Koolausrangat","Ruszty montażowe"]
[69,"Other support studs","Muut koolausrangat","Inne profile montażowe"]
[70,"Flashings","Listat","Obróbki"]
[71,"Special flashings","Erikoislistat","Obróbki specjalne"]
[72,"Screws and other acc.","Ruuvit, muut tarvikkeet","Wkręty i inne akcesoria"]
[73,"Flat sheets","Arkit","Blacha płaska"]
[74,"Fitting order","Lisätilaus","Dodatkowe zamówienie"]
[75,"Booking","Varaus","Reserwacja"]
[76,"<Select option>","<Valitse vaihto-ehto>","<Wybierz opcję>"]
[77,"Price €/m²","Hinta €/m²","Cena €/m²"]
[78,"Brick pattern","Tiilikuvio","Wzór w cegłę"]
[79,"Material","Materiaalit","Materiał"]
[80,"Colour","Värit","Kolor"]
[81,"Mixed brick pattern","Sekalainen tiilikuvio","Mieszany wzór cegły"]
[82,"No perforation","Ei rei'itystä","Bez perforacji"]
[83,"ITEM","RIVI","POZ."]
[84,"Dv right","Dv oikea","Dv prawej"]
[85,"Dv left","Dv vasen","Dv levej"]
[86,"Dh up","Dh ylä","Dh górny"]
[87,"Dh down","Dh ala","Dh niższy"]
[88,"Part ID","Osa ID","Część ID"]
[89,"Sizes","Kokorajat","Rozmiary"]
[90,"*For further info please refer to product size table","*Lisätietoa tarvittaessa, viittaa tuotteen mittataulukkoon","*Więcej informacji można znaleźć w tabeli rozmiarów produktu"]
[91,"Amount ","Määrä","Ilość"]
[92,"Order form cover page","Tilauskaavakkeen pääsivu","Formularz Zamowienia - okladka"]
[93,"Horizontal panel max","Vaakasuuntaisen kasetin maksimimitta","Maksymalny wymiar panela w poziomie"]
[94,"Vertical panel max","Pystysuuntaisen kasetin maksimitta","Maksymalny wymiar panela w pionie"]
[95,"Steel","Teräs","Stal"]
[96,"Standard","Standard","Standard"]
[97,"Matt","Matta","Matowy"]
[98,"Metallic","Metallisävy","Metaliczny"]
[99,"Epoxy+PP","Epoksi+pulverimaalaus","Epoksy+PP"]
[100,"Other material, thickness, colour","Muu materiaali, ainevahvuus, väri","Inny materiał, grubość, kolor"]
[101,"Thickness","Ainevahvuus","Thickness"]
[102,"Zinc","Kuumasinkitty","Ocynk"]
[103,"Specify colour:","Määritä väri:","Określ kolor"]
[104,"Length","Pituus","Długość"]
[105,"MATERIALS, COATINGS AND COLOURS","MATERIAALIT, PINNOITTEET JA VÄRIT","MATERIAŁ, POWŁOKI I KOLORY"]
[106,"Screws and other acc.","Ruuvit, muut tarvikkeet","Wkręty i inne akcesoria"]
[107,"Package size:","Pakkauskoko:","Wielkość paczki:"]
[108,"Other accessory","Muut tarvikkeet","Inne akcesoria"]
[109,"Material thickness / material / coating / colour","Materiaalin vahvuus / materiaali / pinnoite / väri","Grubość materiału / materiał / powłoka / kolor"]
[110,"Part nr","Osa nro","Część nr"]
[111,"Bright","Kirkas","Jasny"]
[112,"Internal corner flashing","Sisänurkkalista","Obróbka wewnętrznego narożnika"]
[113,"Cover flashing","Suojalista","Obróbki maskujące"]
[114,"External corner flashing","Ulkonurkkalista","Obróbka zewnętrznego narożnika"]
[115,"Add the dimensions marked with letters into the notes","Lisää merkinnät kirjaimilla mitat","Dodaj wymiary oznaczone literami w uwagach"]
[116,"Flat sheet","Arkki","Blacha płaska"]
[117,"Typical lengths:","Tyypillinen pituus:","Typowa długość:"]
[118,"Width:","Leveys:","Szerokość:"]
[119,"Other flashings","Muut vakiolistat","Inne obróbki"]
[120,"st. fillet","aloituslista","prof. startowy"]
[121,"Starting fillet & oth. fl.","Aloitus- ja muut vakiolistat","Profile startowe i inne"]
[122,"Support bracket","Koolausrangan liitoskappale","Wspornik"]
[123,"Starting fillet","Aloituslista","Profil startowy"]
[124,"Stainless steel","Ruostumaton teräs","Stal nierdzewna"]
[125,"bracket","liitoskappale","wspornik"]
[126,"Coating","Pinnoite","Powłoka"]
[127,"Main order","Päätilaus","Zamówienie główne"]
[128,"No brick pattern","Ei tiilikuviota","Bez wzoru w cegłę"]
[129,"Accessory specification","Tarvike-erittlyt","Specyfikacja akcesoriów"]
[130,"Aluminium","Alumiini","Aluminium"]
[131,"Different colour or material","Eri väri tai materiaali","Inny kolor lub materiał"]
[132,"Same as panel","Sama kuin paneeli","Taki sam jak panel"]
[133,"Other flashing","Muut tarvikkeet","Obróbki inne"]
[134,"Show","Näytä","Pokaż"]
[135,"Hide","Piilota","Ukryj"]
[136,"Add sheet","Lisää sivu","Dodaj arkusz"]
[137,"Not available","Ei saatavilla","Nie dostępne"]
[138,"Rivet","Niitti","Nit"]
[139,"Screw","Ruuvit","Wkręt"]
[140,"Horizontal joint colour","Vaakasauman väri","Kolor fugi w poziomie"]
[141,"Different colour","Eri väri","Inny kolor"]
[142,"Material not selected for basic panel!","Raaka-ainetta ei ole valittu peruskasetille","Materiał nie wybrany dla panelu podstawowego!"]
[143,"Fastening type","Kiinnikkeen tyyppi","Sposób mocowania"]
[144,"Concealed fixing","Piilokiinnitys","Ukryte mocowanie"]
[145,"Replaceable panel","Vaihdettava kasetti","Panel wymienny"]
[146,"Select product","Valitse tuote","Wybierz panel"]
[147,"Special","Erikois","Specjalny"]
[148,"Select sheet","Valitse arkki","Wybierz arkusz"]
[149,"Support brackets","Kiinnityspala","Wspornik"]
[150,"No fastening holes","Ei kiinnitysreikiä","Bez otworów"]
[151,"Support stud","Kiinnitysorsi","Ruszt"]
[152,"Add 5 rows","Lisää 5 riviä","Dodaj 5 wierszy"]
[153,"Delete 5 rows","Poista 5 riviä","Usuń 5 wierszy"]
[154,"Select product to continue","Valitse tuote jatkaaksesi","Wybierz produkt, aby kontynuować"]
[155,"Please use the button below to create a macro-free workbook to send to Ruukki","Vie makrovapaa versio","Eksportuj wersję bez makr"]
[156,"Natural","Luonnon","Naturalny"]
[157,"Export macro-free version","Vie makrovapaa versio","Eksportuj wersję bez makr"]
[158,"Vertical j. flashings","Pystysaumalistat","Obróbki stykowe pio."]
[159,"Vertical joint flashings","Pystysaumalistat","Obróbki stykowe pionowe"]
[160,"Vertical joint flashing","Pystysaumalista","Obróbka stykowe pionowe"]
[161,"Joint piece","Jatkopala","Adapter"]
[162,"Separating piece EPDM","Erotinkumi EPDM","EPDM"]
[163,"Separating strip EPDM","Erotinnauha EPDM","EPDM"]
[164,"Gloss","Kiilto","Glosa"]
[165,"Packing info","Pakkaustiedot","Info o pakowaniu"]
[166,"Type","Tyypi","Typ"]
[167,"matt","matta","matowy"]
[168,"metallic","metallisävy","metaliczny"]
[169,"Other:","Muu:","Inne:"]
[170,"Example","Esimerkki","Przykład"]
[171,"Pitched panel Upper A","Vinot kasetit Ylä A","Kaseton ścięty Górny A"]
[172,"Pitched panel Lower B","Vinot kasetit Ala B","Kaseton ścięty Niższy B"]
[173,"Pitched panel Left C","Vinot kasetit Vasen C","Kaseton ścięty Lewo C"]
[174,"Pitched panel Right D","Vinot kasetit Oikeus D","Kaseton ścięty Prawo D"]
[175,"U-panel","U-kasetit","Kaseton U-kształtny"]
[176,"Part ID conflict found!","Osanumero ristiriita löydetty!","Znaleziono konflikt numerów części!"]
[177,"Open size table","Avata kokotaulukko","Otwórz tabelę rozmiarów"]
[178,"Sheet","Sivu","Arkusz"]
[179,"added!","lisätty!","dodany!"]
[180,"Sheet size","Arkin koko","Rozmiar arkusza"]

{"sheet":"Data","index":16,"n_rows":70,"n_cols":354,"rows_kept":70,"cut":false,"hidden":true,"merged":[]}
["Current lang","Language","SheetList_tab",null,"TransOpt_tab","FitBook_tab","Material_tab",null,"Perfo_tab","Stud_mat","CoatingSt_tab","Studs_tab",null,null,null,null,null,null,null,null,null,null,null,null,null,null,null,null,null,null,null,null,null,null,null,null,null,null,null,null,null,null,null,null,null,null,null,null,null,null,null,null,null,null,null,null,null,null,null,null,null,null,null,null,null,null,null,null,null,null,null,null,null,null,null,null,null,null,null,null,null,null,null,null,null,null,null,null,null,null,null,null,null,null,null,null,null,null,null,null,null,null,null,null,null,null,null,null,null,null,null,null,null,null,null,null,null,null,null,null,null,null,null,null,null,null,null,null,null,null,null,null,null,null,null,null,null,null,null,null,null,null,null,null,null,null,null,null,null,null,null,null,null,null,null,null,null,null,null,null,null,null,null,null,null,null,null,null,null,null,null,null,null,null,null,null,null,null,null,null,null,null,null,null,null,null,null,null,null,null,null,null,null,null,null,null,null,null,null,null,null,null,null,null,null,null,null,null,null,null,null,null,null,null,null,null,null,null,null,null,null,null,null,null,null,null,null,null,null,null,null,null,null,null,null,null,null,null,null,null,null,null,null,null,null,null,null,null,null,null,null,null,null,null,null,null,null,null,null,null,null,null,null,null,null,null,null,null,null,null,null,null,null,null,null,null,null,null,null,null,null,null,null,null,null,null,null,null,null,null,null,null,null,null,null,null,null,null,null,null,null,null,null,null,null,null,null,null,null,null,null,null,null,null,null,null,null,null,null,null,null,null,null,null,null,null,null,null,null,null,null,null,null,null,null,null,null,null,null,null,null,null,null,null,null,null,null,null,null,null,null,"<Select option>",null,"<Select option>"]
[2,"English","Order form cover page",null,"Other","Main order","<Select option>",null,"No perforation","<Select option>","<Select option>","Select product"]
["Prev lang","Suomi","1 Basic Lamella",null,"FCA (Pick-up)","Fitting order","Steel 1,2 mm",null,"Symmetrical perforation","Steel 1,2 mm","HIARC","CA1SS1",null,null,null,102,"A/A1","B/A2/B1","C/B/B2/A3","Dh/C/B","Dv/B/Dh","Dv","A1+A2","A1+A2+A3"]
[3,"Polska","2 Corner Lamella",null,"DAP (Factory transport)","Booking","Aluminium 1,5 mm",null,"Art perforation","Aluminium 1,5 mm","Epoxy+PP","CA1SS2",null,null,null,"Basic","100;3000","100;3000","20;30","20;30","20;30"]
[null,null,"3 Special Lamella",null,"DDP (Delivery Duty Paid)",null,"Other",null,null,"Other material, thickness, colour",null,"CA1RS1",null,null,null,"Corner","60;2940","60;2940","100;3000","20;30","20;30","20;30","1330;2000"]
[null,null,"4 Support studs",null,null,null,null,null,null,null,"CoatingAl_tab","CA1SSC1",null,null,null,"Pitched A","100;3000","100;3000","100;3000","20;30","20;30","20;30"]
["▲▲▲",null,"5 Support brackets",null,"YesNo_tab","Gloss_tbl",null,null,"Pattern_tab","StudMatPol_tab","<Select option>","Other",null,null,null,"Pitched B","100;3000","100;3000","100;3000","20;30","20;30","20;30"]
[null,null,"6 Flashings",null,"No","Matt (5%)",null,null,"No brick pattern","<Select option>","PVDF",null,null,null,null,"Pitched C","100;3000","100;3000","100;3000","20;30","20;30","20;30"]
[null,null,"7 Other flashings",null,"Yes","Matt (30%)",null,null,"Horizontal brick pattern","Steel 1,2 mm","PP",null,null,null,null,"Pitched D","100;3000","100;3000","100;3000","20;30","20;30","20;30"]
["Change log",null,"8 Screws and other acc.",null,null,"Gloss (70%)",null,null,"Vertical brick pattern","Aluminium 1,5 mm","Natural",null,null,null,null,"U-Panel","60;700","120;2880","60;700","20;30","20;30","20;30",null,2000]
["v2.2",null,"9 Flat sheets",null,"LeheUpdate_tab","Code2Run","Accesories","CT accessories","Mixed brick pattern","Other material, thickness, colour",null,null,null,null,null,"102G"]
["- new translation module (no resetting of the whole workbook)",null,null,null,"A7","LeheUpdate3","S3H48022D02S4C","S3H60029D03S6B",null,"Zinc 1,5 mm","ColourHiarc_tab",null,null,null,null,"Basic","100;3000","100;3000","20;30","20;30","20;30"]
["- faster product selection module (optimized cycles)",null,null,null,"I5","LeheUpdate1","S3H55022L02S4B","S3H65024L04BS6E","Hole_tab",null,"<Select option>",null,null,null,null,"Corner","60;2940","60;2940","100;3000","20;30","20;30","20;30","1330;2000"]
["- new buttons",null,"Size tables",null,"I6","LeheUpdate2",null,"CA3SP814","Standard hole pattern","FlashMat_tab","RR20",null,null,null,null,"Pitched A","100;3000","100;3000","100;3000","20;30","20;30","20;30"]
["- combined corten and hiarc sheets",102,"https://www.ruukki.com/images/default-source/b2b/product-images/facade-claddings/liberta/en-size-tables/size-table_liberta_102_en.jpg?sfvrsn=4529194f_2",null,"L5","LeheUpdate21",null,"CA3SE410","Custom hole pattern","<Select option>","RR21",null,null,null,null,"Pitched B","100;3000","100;3000","100;3000","20;30","20;30","20;30"]
["- partID checker","102G","https://www.ruukki.com/images/default-source/b2b/product-images/facade-claddings/liberta/en-size-tables/size-table_liberta_102_grande_en.jpg?sfvrsn=938816e_2",null,"H8","LeheUpdate4",null,"CA3SE420","No fastening holes","Steel 0,6 mm","RR23",null,null,null,null,"Pitched C","100;3000","100;3000","100;3000","20;30","20;30","20;30"]
["v2.2.1",500,"https://www.ruukki.com/images/default-source/b2b/product-images/facade-claddings/liberta/en-size-tables/size-table_liberta_500_en.jpg?sfvrsn=4600fb35_2",null,"H10","LeheUpdate5",null,null,null,"Aluminium 0,7 mm","RR40 matt",null,null,null,null,"Pitched D","100;3000","100;3000","100;3000","20;30","20;30","20;30"]
["-sizetable button","500G","https://www.ruukki.com/images/default-source/b2b/product-images/facade-claddings/liberta/en-size-tables/size-table_liberta_500_grande_en.jpg?sfvrsn=cc09cfb_2",null,"K11","LeheUpdate8",null,null,null,"Other material, thickness, colour","RR41 matt",null,null,null,null,"U-Panel","60;2820","120;2880","60;2820","20;30","20;30","20;30",null,2000]
["v2.2.2",550,"https://www.ruukki.com/images/default-source/b2b/product-images/facade-claddings/liberta/en-size-tables/size-table_liberta_550_en.jpg?sfvrsn=eeeeda7d_2",null,null,null,null,null,null,null,"RR45 matt",null,null,null,null,500]
["-fixed mixed studs",600,"https://www.ruukki.com/images/default-source/b2b/product-images/facade-claddings/liberta/en-size-tables/size-table_liberta_600_en.jpg?sfvrsn=f61b35df_2",null,null,"Starting Fillet","Corten","Grande","Vertical","ProductSel_tab","RR40 metallic",null,null,null,null,"Basic","100;3000"]
["v2.2.3",700,"https://www.ruukki.com/images/default-source/b2b/product-images/facade-claddings/liberta/en-size-tables/size-table_liberta_700_en.jpg?sfvrsn=b2f9c040_2",null,1,null,null,null,null,"Select product","RR41 metallic",null,null,null,null,"Corner"]
["-added depth column to u-panel",800,"https://www.ruukki.com/images/default-source/b2b/product-images/facade-claddings/liberta/en-size-tables/size-table_liberta_800_en.jpg?sfvrsn=aff6bd94_2",null,2,null,null,null,null,"Original 102","RR42 metallic",null,null,null,null,"Pitched A"]
["v2.2.4",null,null,null,3,null,null,1,null,"Original 102 Grande","RR43 metallic",null,null,null,null,"Pitched B"]
["-updated size table",null,null,null,4,2,null,null,null,"Elegant 500","Other",null,null,null,null,"Pitched C"]
["v2.2.5",null,null,null,5,2,null,1,null,"Elegant 500 Grande",null,null,null,null,null,"Pitched D"]
["- limited updateDateSAP code to existing sheets",null,null,null,6,9,null,null,1,"Elegant 550","Screw_col_type",null,null,null,null,"U-Panel"]
["- PP gloss table changed",null,null,null,7,null,1,null,null,"Cor-Ten 600","<Select option>",null,null,null,null,"500G"]
["v2.2.6",null,null,null,8,null,1,null,1,"Cor-Ten 700","Standard",null,null,null,null,"Basic","100;3000"]
["- fixed L102G depth",null,null,null,9,null,1,null,1,"Cor-Ten 800","Matt",null,null,null,null,"Corner"]
["v2.2.7",null,null,null,10,null,null,null,null,"Special","Metallic",null,null,null,null,"Pitched A"]
["-added CA1SS3",null,null,null,11,null,1,null,null,"Special Cor-Ten","Bright",null,null,null,null,"Pitched B"]
["v2.3",null,null,null,12,null,null,null,null,"Original 100",null,null,null,null,null,"Pitched C"]
["-added L100",null,null,null,null,null,null,null,null,null,null,null,null,null,null,"Pitched D"]
["-fixed \"select product\" and language selection error",null,null,null,null,null,null,null,null,null,null,null,null,null,null,"U-Panel"]
["v2.3.1","Select","102","102G","500","500G","550","600","700","800","Special","Special C","100",null,null,550]
["-pitched letters","Basic","Amin = 100, Bmin = 100","Amin = 100, Bmin = 100","Amin = 240, Bmin = 275","Amin = 240, Bmin = 275","Amin = 150, Bmin = 150","Amin = 100, Bmin = 100","Amin = 100, Bmin = 100","Amin = 200, Bmin = 200",null,null,"Amin = 100, Bmin = 100",null,null,"Basic","100;3000"]
["V2.3.2",null,null,"Max = 3000x1000, 1000x3000","Amax = 3000, Bmax = 900","Amax = 3000, Bmax = 900","Amax = 650, Bmax = 3000","Amax = 3000, Bmax = 1150","Amax = 1150, Bmax = 3000","Amax = 1150, Bmax = 3000",null,null,null,null,null,"Corner"]
["- Delivery term DDP",null,"C = 20, 25, 30","C = 25, 30","C = 25, 30","C = 25, 30","C = 25, 30","C = 30","C = 30","C = 40",null,null,null,null,null,"Pitched A"]
["v2.3.3",null,"Dh, Dv = 20, 25, 30","Dh, Dv = 20, 25, 30","Dh, Dv = 5-30","Dh, Dv = 5-30","Dh, Dv = 5","Dh = 34, Dv = 10-30","Dh = 10, Dv = 20-30","Dh = 10, Dv = 10",null,null,null,null,null,"Pitched B"]
["- updated matt and gloss types",null,"30,20,20","30,20,20","30,10,10","30,10,10","30,05,05","30,34,20","30,10,20","40,10,10",null,null,null,null,null,"Pitched C"]
["v2.3.4","Corner","A1,A2min = 60, Bmin = 100","A1,A2min = 60, Bmin = 100","A1,A2min = 70, Bmin = 275","A1,A2min = 70, Bmin = 275","Amin = 150, Bmin = 150","A1,A2min = 60, Bmin = 100","A1,A2min = 60, Bmin = 100","A1,A2min = 100, Bmin = 200",null,null,"A1,A2min = 60, Bmin = 100",null,null,"Pitched D"]
["- added default joint values to example row",null,null,null,"Amax = 1000+2000, Bmax = 800","A1,A2max = 700, Bmax = 800","Amax = 650, Bmax = 3000","Amax = 1000 + 2000, Bmax = 1150","A1,A2max = 1000, Bmax = 3000","Amax = 1150, Bmax = 3000",null,null,null,null,null,"U-Panel"]
["v2.3.5",null,"C = 20, 25, 30","C = 20, 25, 30","C = 25, 30","C = 25, 30","C = 25, 30","C = 30","C = 30","C = 40"]
["-updated sym perfo and size table links",null,"Dh, Dv = 20, 25, 30","Dh, Dv = 20, 25, 30","Dh, Dv = 5-30","Dh, Dv = 5-30","Dh, Dv = 5","Dh = 34, Dv = 10-30","Dh = 10, Dv = 20-30","Dh = 10, Dv = 10"]
["v2.3.5.1",null,"30,20,20","30,20,20","30,10,10","30,10,10","30,05,05","30,34,20","30,10,20","40,10,10"]
["-updated L700 corner size","Pitched A","Amin = 100, Bmin = 100","Amin = 100, Bmin = 100","Amin = 240, Bmin = 275","Amin = 240, Bmin = 275","Amin = 150, Bmin = 150","Amin = 100, Bmin = 100","Amin = 100, Bmin = 100","Amin = 200, Bmin = 200",null,null,"Amin = 100, Bmin = 100"]
["v2.3.5.2",null,null,null,"Amax = 3000, Bmax = 900","Amax = 3000, Bmax = 900","Amax = 650, Bmax = 3000","Amax = 3000, Bmax = 1150","Amax = 1150, Bmax = 3000","Amax = 1150, Bmax = 3000"]
["-updated L700 Dv",null,"C = 20, 25, 30","C = 20, 25, 30","C = 25, 30","C = 25, 30","C = 25, 30","C = 30","C = 30","C = 40"]
["v2.4",null,"Dh, Dv = 20, 25, 30","Dh, Dv = 20, 25, 30","Dh, Dv = 5-30","Dh, Dv = 5-30","Dh, Dv = 5","Dh = 34, Dv = 10-30","Dh = 10, Dv = 20-30","Dh = 10, Dv = 10",null,null,null,null,null,null,102,null,"102G",null,500,null,"500G",null,550,null,600,null,700,null,800]
["- updated corten flashings to 1.5 or 0.7",null,"30,20,20","30,20,20","30,10,10","30,10,10","30,05,05","30,34,20","30,10,20","40,10,10",null,null,null,null,null,null,"A","B","A2","B2","B3","B4","B5","B6","B7","B8","B9","B10","B11","B12","B13","B14"]
[null,"Pitched B","Amin = 100, Bmin = 100","Amin = 100, Bmin = 100","Amin = 240, Bmin = 275","Amin = 240, Bmin = 275","Amin = 150, Bmin = 150","Amin = 100, Bmin = 100","Amin = 100, Bmin = 100","Amin = 200, Bmin = 200",null,null,"Amin = 100, Bmin = 100",null,null,null,300,3000,800,3000,600,900,3000,800,650,3000,3000,1000,1000,3000,1000,3000]
[null,null,null,null,"Amax = 3000, Bmax = 900","Amax = 3000, Bmax = 900","Amax = 650, Bmax = 3000","Amax = 3000, Bmax = 1150","Amax = 1150, Bmax = 3000","Amax = 1150, Bmax = 3000",null,null,null,null,null,null,450,2500,900,2500,900,600,null,null,650,2000]
[null,null,"C = 20, 25, 30","C = 20, 25, 30","C = 25, 30","C = 25, 30","C = 25, 30","C = 30","C = 30","C = 40",null,null,null,null,null,null,600,2000,997,2000,1500,600,null,null,650,800]
[null,null,"Dh, Dv = 20, 25, 30","Dh, Dv = 20, 25, 30","Dh, Dv = 5-30","Dh, Dv = 5-30","Dh, Dv = 5","Dh = 34, Dv = 10-30","Dh = 10, Dv = 20-30","Dh = 10, Dv = 10",null,null,null,null,null,null,600,900,1096,1500,3000,300,null,null,1000,500]
[null,null,"30,20,20","30,20,20","30,10,10","30,10,10","30,05,05","30,34,20","30,10,20","40,10,10",null,null,null,null,null,null,900,600,1150,1150]
[null,"Pitched C","Amin = 100, Bmin = 100","Amin = 100, Bmin = 100","Amin = 240, Bmin = 275","Amin = 240, Bmin = 275","Amin = 150, Bmin = 150","Amin = 100, Bmin = 100","Amin = 100, Bmin = 100","Amin = 200, Bmin = 200",null,null,"Amin = 100, Bmin = 100",null,null,null,1500,600,1500,1096]
[null,null,null,null,"Amax = 3000, Bmax = 900","Amax = 3000, Bmax = 900","Amax = 650, Bmax = 3000","Amax = 3000, Bmax = 1150","Amax = 1150, Bmax = 3000","Amax = 1150, Bmax = 3000",null,null,null,null,null,null,2000,600,2000,997]
[null,null,"C = 20, 25, 30","C = 20, 25, 30","C = 25, 30","C = 25, 30","C = 25, 30","C = 30","C = 30","C = 40",null,null,null,null,null,null,2500,450,2500,900]
[null,null,"Dh, Dv = 20, 25, 30","Dh, Dv = 20, 25, 30","Dh, Dv = 5-30","Dh, Dv = 5-30","Dh, Dv = 5","Dh = 34, Dv = 10-30","Dh = 10, Dv = 20-30","Dh = 10, Dv = 10",null,null,null,null,null,null,3000,300,3000,800]
[null,null,"30,20,20","30,20,20","30,10,10","30,10,10","30,05,05","30,34,20","30,10,20","40,10,10"]
[null,"Pitched D","Amin = 100, Bmin = 100","Amin = 100, Bmin = 100","Amin = 240, Bmin = 275","Amin = 240, Bmin = 275","Amin = 150, Bmin = 150","Amin = 100, Bmin = 100","Amin = 100, Bmin = 100","Amin = 200, Bmin = 200",null,null,"Amin = 100, Bmin = 100"]
[null,null,null,null,"Amax = 3000, Bmax = 900","Amax = 3000, Bmax = 900","Amax = 650, Bmax = 3000","Amax = 3000, Bmax = 1150","Amax = 1150, Bmax = 3000","Amax = 1150, Bmax = 3000"]
[null,null,"C = 20, 25, 30","C = 20, 25, 30","C = 25, 30","C = 25, 30","C = 25, 30","C = 30","C = 30","C = 40"]
[null,null,"Dh, Dv = 20, 25, 30","Dh, Dv = 20, 25, 30","Dh, Dv = 5-30","Dh, Dv = 5-30","Dh, Dv = 5","Dh = 34, Dv = 10-30","Dh = 10, Dv = 20-30","Dh = 10, Dv = 10"]
[null,null,"30,20,20","30,20,20","30,10,10","30,10,10","30,05,05","30,34,20","30,10,20","40,10,10"]
[null,"U-Panel","A1,A3min = 60, A2min = 120, Bmin = 100","A1,A3min = 60, A2min = 120, Bmin = 100","A1,A3min = 70, A2min = 140, Bmin = 275","A1,A3min = 70, A2min = 140, Bmin = 275","Amin = 150, Bmin = 150","A1,A3min = 70, A2min = 140, Bmin = 100","A1,A3min = 70, A2min = 140, Bmin = 100","A1,A3min = 100, A2min = 200, Bmin = 100",null,null,"A1,A3min = 60, A2min = 120, Bmin = 100"]
[null,null,null,null,"A1,A3max = 700, Bmax = 800","A1,A3max = 700, Bmax = 800","Amax = 650, Bmax = 3000","A1,A3max = 700, Bmax = 1000","A1,A3max = 700, Bmax = 3000","A1,A3max = 700, Bmax = 3000"]
[null,null,"C = 20, 25, 30","C = 20, 25, 30","C = 25, 30","C = 25, 30","C = 25, 30","C = 30","C = 30","C = 40"]
[null,null,"Dh, Dv = 20, 25, 30","Dh, Dv = 20, 25, 30","Dh, Dv = 5-30","Dh, Dv = 5-30","Dh, Dv = 5","Dh = 34, Dv = 10-30","Dh = 10, Dv = 20-30","Dh = 10, Dv = 10"]
[null,null,"30,20,20","30,20,20","30,10,10","30,10,10","30,05,05","30,34,20","30,10,20","40,10,10"]